DepartmentFamily,Entity,Date,ExpenseType,ExpenseArea,Supplier,PaymentNumber,InvoiceDistributionAmount,InvoiceDescription,SupplierPostCode,TransactionType
FOOD STANDARDS AGENCY - Westminster,FOOD STANDARDS AGENCY - Westminster,2019-03-28,EXP - RENTALS UNDER NON-PFI OPERATING LEASES - OTHER RENTALS - RENT,Security & Estates,MINISTRY OF JUSTICE,30000003,849613.1,Q1-3 ACCOMMODATION COSTS CLIVE HOUSE 18/19,NP20 9BB,ADMIN
FOOD STANDARDS AGENCY - Westminster,FOOD STANDARDS AGENCY - Westminster,2019-03-28,EXP - RENTALS UNDER NON-PFI OPERATING LEASES - OTHER RENTALS - RENT,OWOW,MINISTRY OF JUSTICE,30000002,569127.53,ACCOMMODATION COSTS Q3-4 2017-18 CLIVE HOUSE,NP20 9BB,ADMIN
FOOD STANDARDS AGENCY - Westminster,FOOD STANDARDS AGENCY - Westminster,2019-03-28,EXP - PURCHASE OF GOODS/SERVICES - ACCOMMODATION & BLDNG MANAGEMENT - CILOR,Security & Estates,MINISTRY OF JUSTICE,30000003,387563.29,Q1-3 ACCOMMODATION COSTS CLIVE HOUSE 18/19,NP20 9BB,ADMIN
FOOD STANDARDS AGENCY - Westminster,FOOD STANDARDS AGENCY - Westminster,2019-03-28,EXP - PURCHASE OF GOODS/SERVICES - ACCOMMODATION & BLDNG MANAGEMENT - CILOR,OWOW,MINISTRY OF JUSTICE,30000002,241161.18,ACCOMMODATION COSTS Q3-4 2017-18 CLIVE HOUSE,NP20 9BB,ADMIN
FOOD STANDARDS AGENCY - Westminster,FOOD STANDARDS AGENCY - Westminster,2019-03-28,EXP - PURCHASE OF GOODS/SERVICES -ACCOMM & BLDNG MGMT - MAINTENANCE & REPAIRS,Security & Estates,MINISTRY OF JUSTICE,30000003,221479.71,Q1-3 ACCOMMODATION COSTS CLIVE HOUSE 18/19,NP20 9BB,ADMIN
FOOD STANDARDS AGENCY - Westminster,FOOD STANDARDS AGENCY - Westminster,2019-03-25,EXP - PURCHASE OF GOODS/SERVICES - OTHER - PROGRAMME EXPENDITURE,"Novel Foods, GM, Radiological and Feed Additives",C E F A S,2012700594,154109.88,FS101211 - Sampling and analysis contact to be undertaken by CEFAS,NR33 0HT,PROGRAMME
FOOD STANDARDS AGENCY - Westminster,FOOD STANDARDS AGENCY - Westminster,2019-03-27,EXP - PURCHASE OF GOODS/SERVICES - OTHER - PROGRAMME EXPENDITURE,Risk Assessment ? research and development,"THE CHANCELLOR, MASTERS AND SCHOLARS OF THE UNIVERSITY OF OXFORD",1011709036,152002.11,Project funds uplift to existing PO 422784.,OX1 2JD,PROGRAMME
FOOD STANDARDS AGENCY - Westminster,FOOD STANDARDS AGENCY - Westminster,2019-03-07,EXP - PURCHASE OF GOODS/SERVICES - ACCOMM & BLDNG MGMT - FURNITURE & FITTINGS,NFCU Phase 2,INTEX PROJECTS LTD,10000153,147970.98,WORKS CARRIED OUT AT APEX HOUSE BIRMINGHAM,CV35 8XB,PROGRAMME
FOOD STANDARDS AGENCY - Westminster,FOOD STANDARDS AGENCY - Westminster,2019-03-28,EXP - PURCHASE OF GOODS/SERVICES - ACCOMM & BLDNG MGMT - SHARED SITE RECHARGE,OWOW,MINISTRY OF JUSTICE,30000002,146091.98,ACCOMMODATION COSTS Q3-4 2017-18 CLIVE HOUSE,NP20 9BB,ADMIN
FOOD STANDARDS AGENCY - Westminster,FOOD STANDARDS AGENCY - Westminster,2019-03-14,EXP - PURCHASE OF GOODS/SERVICES - SHARED SERV OUTSRCG- CIVIL SERV PENSION ADMIN,Finance Director & Branch,LONDON PENSIONS FUND AUTHORITY,1011708879,121657.75,2018-19 LPFA Pension Deficit reduction.,EC3N 4LP,ADMIN
FOOD STANDARDS AGENCY - Westminster,FOOD STANDARDS AGENCY - Westminster,2019-03-26,EXP - AMORTISATION - INTANGIBLE ASSETS,Regulating our Future,EPIMORPHICS LTD,1011709004,98060.51,ROF - WP 15 - UV Phase 1 Build,BS20 6PT,CAPITAL
FOOD STANDARDS AGENCY - Westminster,FOOD STANDARDS AGENCY - Westminster,2019-03-28,EXP - PURCHASE OF GOODS/SERVICES - ACCOMM & BLDNG MGMT - FURNITURE & FITTINGS,NFCU Phase 2,INTEX PROJECTS LTD,1011709042,76178.4,FINAL INVOICE FOR WORKS CARRIED OUT AT APEX HOUSE BIRMINGHAM,CV35 8XB,PROGRAMME
FOOD STANDARDS AGENCY - Westminster,FOOD STANDARDS AGENCY - Westminster,2019-03-25,EXP - PURCHASE OF GOODS/SERVICES - OTHER - PROGRAMME EXPENDITURE,Regulatory Delivery,C E F A S,2012700594,72525,Shellfish biotoxin monitoring 2018/19,NR33 0HT,PROGRAMME
FOOD STANDARDS AGENCY - Westminster,FOOD STANDARDS AGENCY - Westminster,2019-03-18,EXP - PURCHASE OF GOODS/SERVICES - OTHER PROFESSIONAL SERVICES,Scientific Methods & Laboratory Policy,ERNST & YOUNG LLP,1011708918,71535.94,FS101212-Funding for the 2nd phase review of UK's official control laboratories in food and feed enforcement ,SE1 2AF,ADMIN
FOOD STANDARDS AGENCY - Westminster,FOOD STANDARDS AGENCY - Westminster,2019-03-28,EXP - PURCHASE OF GOODS/SERVICES - OTHER ENERGY/UTILITIES/WASTE COST,Security & Estates,MINISTRY OF JUSTICE,30000003,68436.63,Q1-3 ACCOMMODATION COSTS CLIVE HOUSE 18/19,NP20 9BB,ADMIN
FOOD STANDARDS AGENCY - Westminster,FOOD STANDARDS AGENCY - Westminster,2019-03-07,EXP - AMORTISATION - INTANGIBLE ASSETS,Operational Delivery,LITTLE FISH UK LTD,1011708763,67836.4,IT in Meat Plants - Thin Client Phase 2 - Attended Installation,NG1 1LS,CAPITAL
FOOD STANDARDS AGENCY - Westminster,FOOD STANDARDS AGENCY - Westminster,2019-03-13,EXP - AMORTISATION - INTANGIBLE ASSETS,NFCU Phase 2,METHODS BUSINESS AND DIGITAL TECHNOLOGY LTD,1011708858,62401.89,Systems Integrator ? Work package 1,EC1A 4EN,CAPITAL
FOOD STANDARDS AGENCY - Westminster,FOOD STANDARDS AGENCY - Westminster,2019-03-19,EXP - PURCHASE OF GOODS/SERVICES - OTHER ICT COSTS - COMPUTER SOFTWARE,IT Service Delivery,SOURCECODE UK LTD T/A K2.NET UK,1011708941,60420,K2 Cloud Premier Licenses for (quantity redacted FOI s.43),KT13 0NY,ADMIN
FOOD STANDARDS AGENCY - Westminster,FOOD STANDARDS AGENCY - Westminster,2019-03-07,Exp - Purchase Of Goods/Services - Consultancy,Operations Assurance ,DELOITTE MCS LTD,1011708760,58960.8,Management Consultant Services FSA599 - Delivery of Official Controls Strategic Review,MK9 1FD,PROGRAMME
FOOD STANDARDS AGENCY - Westminster,FOOD STANDARDS AGENCY - Westminster,2019-03-27,EXP - PURCHASE OF GOODS/SERVICES - OTHER - PROGRAMME EXPENDITURE,"Animal Feed, Foodborne Disease and Allergy (AFFDA)",PUBLIC HEALTH ENGLAND,2012700598,57347.3,"FS102121-(Bulk order)Ongoing project in which chickens sold at retail are tested for Campylobacter levels. Work includes sampling, testing & analysis on samples collected on a nationwide basis.",NW9 5EQ,PROGRAMME
FOOD STANDARDS AGENCY - Westminster,FOOD STANDARDS AGENCY - Westminster,2019-03-27,EXP - PURCHASE OF GOODS/SERVICES - OTHER - PROGRAMME EXPENDITURE,Risk Assessment ? research and development,"THE CHANCELLOR, MASTERS AND SCHOLARS OF THE UNIVERSITY OF OXFORD",1011709036,57236.82,D12 - Hold 8th Steering Group meeting (incorporating 12th Management Group meeting),OX1 2JD,PROGRAMME
FOOD STANDARDS AGENCY - Westminster,FOOD STANDARDS AGENCY - Westminster,2019-03-21,EXP - AMORTISATION - INTANGIBLE ASSETS,Regulating our Future,EPIMORPHICS LTD,1011708955,56250,ROF - WP 15 - UV Phase 1 Build,BS20 6PT,CAPITAL
FOOD STANDARDS AGENCY - Westminster,FOOD STANDARDS AGENCY - Westminster,2019-03-05,EXP - PURCHASE OF GOODS/SERVICES - OTHER - PROGRAMME EXPENDITURE,IT Information & Knowledge Management,ACCENTURE UK LTD,1011708725,45500,Distributed Ledger Technology (DLT) for Export Health Certification,EC3M 3BD,PROGRAMME
FOOD STANDARDS AGENCY - Westminster,FOOD STANDARDS AGENCY - Westminster,2019-03-29,EXP - PURCHASE OF GOODS/SERVICES - OTHER - PROGRAMME EXPENDITURE,IT Information & Knowledge Management,ACCENTURE UK LTD,1011709064,45500,Distributed Ledger Technology (DLT) for Export Health Certification,EC3M 3BD,PROGRAMME
FOOD STANDARDS AGENCY - Westminster,FOOD STANDARDS AGENCY - Westminster,2019-03-25,EXP - PURCHASE OF GOODS/SERVICES - OTHER - PROGRAMME EXPENDITURE,Regulatory Delivery,C E F A S,2012700594,42153.13,Shellfish classification,NR33 0HT,PROGRAMME
FOOD STANDARDS AGENCY - Westminster,FOOD STANDARDS AGENCY - Westminster,2019-03-14,EXP - AMORTISATION - INTANGIBLE ASSETS,Regulating our Future,EPIMORPHICS LTD,1011708874,41950,ROF - WP 15 - UV Phase 1 Build,BS20 6PT,CAPITAL
FOOD STANDARDS AGENCY - Westminster,FOOD STANDARDS AGENCY - Westminster,2019-03-22,EXP - PURCHASE OF GOODS/SERVICES - OTHER,Analytics Unit,UNIVERSITY OF KENT,1011708967,41575,Nationally representative discrete choice survey on food preferences,CT2 7NZ,ADMIN
FOOD STANDARDS AGENCY - Westminster,FOOD STANDARDS AGENCY - Westminster,2019-03-25,EXP - PURCHASE OF GOODS/SERVICES - OTHER - PROGRAMME EXPENDITURE,Comms Directors Office,N L A MEDIA ACCESS LIMITED,1011708996,40071.41,NLA - renewal of copyright licence ,TN1 1NL,PROGRAMME
FOOD STANDARDS AGENCY - Westminster,FOOD STANDARDS AGENCY - Westminster,2019-03-06,EXP - PURCHASE OF GOODS/SERVICES - OTHER - PROGRAMME EXPENDITURE,Regulatory Delivery,C E F A S,2012700582,36262.5,Shellfish biotoxin monitoring 2018/19,NR33 0HT,PROGRAMME
FOOD STANDARDS AGENCY - Westminster,FOOD STANDARDS AGENCY - Westminster,2019-03-28,EXP - PURCHASE OF GOODS/SERVICES - OTHER ENERGY/UTILITIES/WASTE COST,OWOW,MINISTRY OF JUSTICE,30000002,36191.25,ACCOMMODATION COSTS Q3-4 2017-18 CLIVE HOUSE,NP20 9BB,ADMIN
FOOD STANDARDS AGENCY - Westminster,FOOD STANDARDS AGENCY - Westminster,2019-03-26,EXP - AMORTISATION - INTANGIBLE ASSETS,Operational Delivery,LITTLE FISH UK LTD,1011709001,34405.84,IT in Meat Plants - Thin Client Phase 2 - Attended Installation,NG1 1LS,CAPITAL
FOOD STANDARDS AGENCY - Westminster,FOOD STANDARDS AGENCY - Westminster,2019-03-05,EXP - PURCHASE OF GOODS/SERVICES - OTHER ICT COSTS - COMPUTER HARDWARE,IT Service Delivery,COREAZURE LTD,1011708730,31655,Datacentre Discovery and Design,EC1A 4EN,ADMIN
FOOD STANDARDS AGENCY - Westminster,FOOD STANDARDS AGENCY - Westminster,2019-03-22,EXP - PURCHASE OF GOODS/SERVICES - OTHER - PROGRAMME EXPENDITURE,Scientific Methods & Laboratory Policy,C E F A S,2012700593,31250,FAO Reference Centre for Bivalve Mollusc Sanitation,NR33 0HT,PROGRAMME
FOOD STANDARDS AGENCY - Westminster,FOOD STANDARDS AGENCY - Westminster,2019-03-29,EXP - PURCHASE OF GOODS/SERVICES - IT MANAGEMENT AND CHANGE - IT DEVELOPMENT,Operational Delivery,DUN & BRADSTREET LTD,1011709069,30467.25,Market Insight to support Risk Assessment of FBOs,SL7 1AJ,PROGRAMME
FOOD STANDARDS AGENCY - Westminster,FOOD STANDARDS AGENCY - Westminster,2019-03-13,EXP - PURCHASE OF GOODS/SERVICES - OTHER PROFESSIONAL SERVICES,Operational Delivery,ARCO UK LTD,1011708870,29779.71,Additional funds for Bulk PO 11770002606,HU1 2SJ,PROGRAMME
FOOD STANDARDS AGENCY - Westminster,FOOD STANDARDS AGENCY - Westminster,2019-03-29,Exp - Purchase Of Goods/Services - Consultancy,Chief Scientific Advisors team,RISKSOL CONSULTING LTD T/A RISK SOLUTIONS,1011709067,29500,Valuing FSA R&D research project.,WA2 7LT,ADMIN
FOOD STANDARDS AGENCY - Westminster,FOOD STANDARDS AGENCY - Westminster,2019-03-06,EXP - PURCHASE OF GOODS/SERVICES - OFFICE RELATED - PUBLICATIONS,Comms Directors Office,COMMUNITY RESEARCH LTD,1011708745,28485,Community Research - Improving the impact of internal communications with Field Operations staff,LE9 4WB,ADMIN
FOOD STANDARDS AGENCY - Westminster,FOOD STANDARDS AGENCY - Westminster,2019-03-26,EXP - PURCHASE OF GOODS/SERVICES - ICT OUTSOURCING & MAINT/SUPPORT,IT Service Delivery,DAISY COMMUNICATIONS LTD,1011709008,27756.77,FSA634 ? Daisy Wisdom Support - (quantity redacted FOI s.43),BB9 5SR,ADMIN
FOOD STANDARDS AGENCY - Westminster,FOOD STANDARDS AGENCY - Westminster,2019-03-07,Exp - Purchase Of Goods/Services - Consultancy,Operations Assurance ,DELOITTE MCS LTD,1011708760,27420,Management Consultant Services FSA599 - Delivery of Official Controls Strategic Review,MK9 1FD,PROGRAMME
FOOD STANDARDS AGENCY - Westminster,FOOD STANDARDS AGENCY - Westminster,2019-03-22,EXP - PURCHASE OF GOODS/SERVICES - OTHER - PROGRAMME EXPENDITURE,Risk Assessment ? research and development,ANIMAL AND PLANT HEALTH AGENCY,2012700592,26656.29,"FS102109 ? Year 4 of the EU Harmonised Survey on AMR, Beef & Pork (APHA) ",YO1 7PX,PROGRAMME
FOOD STANDARDS AGENCY - Westminster,FOOD STANDARDS AGENCY - Westminster,2019-03-29,EXP - PURCHASE OF GOODS/SERVICES - OTHER,Analytics Unit,UNIVERSITY OF KENT,1011709068,25344,Nationally representative discrete choice survey on food preferences,CT2 7NZ,ADMIN
FOOD STANDARDS AGENCY - Westminster,FOOD STANDARDS AGENCY - Westminster,2019-03-07,EXP - PURCHASE OF GOODS/SERVICES - TRAINING & DEVELOPMENT,Organisational Development,OPES BUSINESS PARTNERS,1011708761,25168.41,FSA SCS Development Feb/Mar 2019,BT6 8DD,ADMIN
FOOD STANDARDS AGENCY - Westminster,FOOD STANDARDS AGENCY - Westminster,2019-03-25,EXP - PURCHASE OF GOODS/SERVICES - IT MANAGEMENT AND CHANGE - IT DEVELOPMENT,IT Strategy,MOZAIC SERVICES LTD,1011708988,24975,FSA644 Capabilities Assessment,EC2R 7HG,ADMIN
FOOD STANDARDS AGENCY - Westminster,FOOD STANDARDS AGENCY - Westminster,2019-03-07,EXP - PURCHASE OF GOODS/SERV - SUPPORT - IT SUPPORT SERVICES,IT Service Delivery,LITTLE FISH UK LTD,1011708763,24611,Littlefish End service charge ,NG1 1LS,ADMIN
FOOD STANDARDS AGENCY - Westminster,FOOD STANDARDS AGENCY - Westminster,2019-03-07,EXP - PURCHASE OF GOODS/SERV - SUPPORT - IT SUPPORT SERVICES,IT Service Delivery,LITTLE FISH UK LTD,1011708763,24264,LittleFish Monthy Service charge ,NG1 1LS,ADMIN
FOOD STANDARDS AGENCY - Westminster,FOOD STANDARDS AGENCY - Westminster,2019-03-21,EXP - PURCHASE OF GOODS/SERV - SUPPORT - IT SUPPORT SERVICES,Finance Director & Branch,SHARED SERVICES CONNECTED LTD,1011708956,24178.93,SSCL Core Charge Management Services,HP2 7AH,ADMIN
FOOD STANDARDS AGENCY - Westminster,FOOD STANDARDS AGENCY - Westminster,2019-03-05,EXP - AMORTISATION - INTANGIBLE ASSETS,Regulating our Future,ORDNANCE SURVEY,1011708737,22950,ROF - Unified View,SO16 0AS,CAPITAL
FOOD STANDARDS AGENCY - Westminster,FOOD STANDARDS AGENCY - Westminster,2019-03-07,Exp - Purchase Of Goods/Services - Consultancy,Operations Assurance ,DELOITTE MCS LTD,1011708760,21990,Management Consultant Services FSA599 - Delivery of Official Controls Strategic Review,MK9 1FD,PROGRAMME
FOOD STANDARDS AGENCY - Westminster,FOOD STANDARDS AGENCY - Westminster,2019-03-06,EXP - PURCHASE OF GOODS/SERVICES - OTHER - PROGRAMME EXPENDITURE,Regulatory Delivery,C E F A S,2012700582,21076,Shellfish classification,NR33 0HT,PROGRAMME
FOOD STANDARDS AGENCY - Westminster,FOOD STANDARDS AGENCY - Westminster,2019-03-26,EXP - AMORTISATION - INTANGIBLE ASSETS,Regulating our Future,EPIMORPHICS LTD,1011709004,19612.1,110.5 DAYS CONSULTANCY,BS20 6PT,CAPITAL
FOOD STANDARDS AGENCY - Westminster,FOOD STANDARDS AGENCY - Westminster,2019-03-26,EXP - PURCHASE OF GOODS/SERVICES - TELECOMS - MOBILE PHONES,IT Service Delivery,EE LTD,1011709003,15929.73,EE Mobile Contract over (quantity redacted FOI s.43) - additional line,AL10 9BW,ADMIN
FOOD STANDARDS AGENCY - Westminster,FOOD STANDARDS AGENCY - Westminster,2019-03-18,EXP - PURCHASE OF GOODS/SERVICES - OTHER PROFESSIONAL SERVICES,Scientific Methods & Laboratory Policy,ERNST & YOUNG LLP,1011708918,14307.19,FS101212-Funding for the 2nd phase review of UK's official control laboratories in food and feed enforcement ,SE1 2AF,ADMIN
FOOD STANDARDS AGENCY - Westminster,FOOD STANDARDS AGENCY - Westminster,2019-03-07,EXP - AMORTISATION - INTANGIBLE ASSETS,Operational Delivery,LITTLE FISH UK LTD,1011708763,13567.28,IT in Meat Plants - Thin Client Phase 2 - Attended Installation,NG1 1LS,CAPITAL
FOOD STANDARDS AGENCY - Westminster,FOOD STANDARDS AGENCY - Westminster,2019-03-19,EXP - PURCHASE OF GOODS/SERVICES - OTHER ICT COSTS - COMPUTER SOFTWARE,IT Service Delivery,SOURCECODE UK LTD T/A K2.NET UK,1011708941,12084,CLOUD PREMIER,KT13 0NY,ADMIN
FOOD STANDARDS AGENCY - Westminster,FOOD STANDARDS AGENCY - Westminster,2019-03-21,EXP - AMORTISATION - INTANGIBLE ASSETS,Regulating our Future,EPIMORPHICS LTD,1011708955,11250,FSA 581 - WP 15,BS20 6PT,CAPITAL
FOOD STANDARDS AGENCY - Westminster,FOOD STANDARDS AGENCY - Westminster,2019-03-12,EXP - PURCHASE OF GOODS/SERVICES - OTHER TRAVEL,Chemical Contaminants and Residues,CORPORATE TRAVEL MANAGEMENT NORTH LTD,1011709442,9251.42,TRAVEL EXPENSES WEEK 9,BD1 5HQ,ADMIN
FOOD STANDARDS AGENCY - Westminster,FOOD STANDARDS AGENCY - Westminster,2019-03-26,EXP - PURCHASE OF GOODS/SERVICES - TELECOMS - MOBILE PHONES,IT Service Delivery,EE LTD,1011709003,8423.28,EE Mobile Contract over(quantity redacted FOI s.43) - additions,AL10 9BW,ADMIN
FOOD STANDARDS AGENCY - Westminster,FOOD STANDARDS AGENCY - Westminster,2019-03-14,EXP - AMORTISATION - INTANGIBLE ASSETS,Regulating our Future,EPIMORPHICS LTD,1011708874,8390,CONSULTANCY,BS20 6PT,CAPITAL
FOOD STANDARDS AGENCY - Westminster,FOOD STANDARDS AGENCY - Westminster,2019-03-04,EXP - PURCHASE OF GOODS/SERVICES - AIR TRAVEL,"Food Additives, Flavourings, and Food Contact Materials",CORPORATE TRAVEL MANAGEMENT NORTH LTD,1011708715,8087.6,TRAVEL WEEK 8 UK,BD1 5HQ,ADMIN
FOOD STANDARDS AGENCY - Westminster,FOOD STANDARDS AGENCY - Westminster,2019-03-25,EXP - PURCHASE OF GOODS/SERVICES - OTHER - PROGRAMME EXPENDITURE,Comms Directors Office,N L A MEDIA ACCESS LIMITED,1011708996,8014.28,LICENCE FEE,TN1 1NL,PROGRAMME
FOOD STANDARDS AGENCY - Westminster,FOOD STANDARDS AGENCY - Westminster,2019-03-26,EXP - AMORTISATION - INTANGIBLE ASSETS,Operational Delivery,LITTLE FISH UK LTD,1011709001,6881.17,IT in Meat Plants - Thin Client Phase 2 - Attended Installation,NG1 1LS,CAPITAL
FOOD STANDARDS AGENCY - Westminster,FOOD STANDARDS AGENCY - Westminster,2019-03-01,EXP - SHORT-TERM CONTRACT & AGENCY STAFF - FULL COST,IT Service Delivery,ALEXANDER MANN SOLUTIONS LTD-2WM,1011708694,6436.44,TEMPORARY STAFF,EC2N 3AQ,ADMIN
FOOD STANDARDS AGENCY - Westminster,FOOD STANDARDS AGENCY - Westminster,2019-03-15,EXP - SHORT-TERM CONTRACT & AGENCY STAFF - FULL COST,IT Service Delivery,ALEXANDER MANN SOLUTIONS LTD-2WM,1011708901,6436.44,TEMPORARY STAFF,EC2N 3AQ,ADMIN
FOOD STANDARDS AGENCY - Westminster,FOOD STANDARDS AGENCY - Westminster,2019-03-22,EXP - SHORT-TERM CONTRACT & AGENCY STAFF - FULL COST,IT Service Delivery,ALEXANDER MANN SOLUTIONS LTD-2WM,1011708968,6436.44,TEMPORARY STAFF,EC2N 3AQ,ADMIN
FOOD STANDARDS AGENCY - Westminster,FOOD STANDARDS AGENCY - Westminster,2019-03-29,EXP - PURCHASE OF GOODS/SERVICES - IT MANAGEMENT AND CHANGE - IT DEVELOPMENT,Operational Delivery,DUN & BRADSTREET LTD,1011709069,6093.45,INSIGHT DATA,SL7 1AJ,PROGRAMME
FOOD STANDARDS AGENCY - Westminster,FOOD STANDARDS AGENCY - Westminster,2019-03-29,EXP - PURCHASE OF GOODS/SERVICES- OTHER - PROGRAMME EXP - LOCAL AUTHORITY GRANTS,Regulatory Delivery,TRADING STANDARDS SOUTH WEST COMMUNITY INTEREST CO,1011709065,5962.36,To develop and deliver feed e-learning. Contract No FSA 615,PL26 8LG,PROGRAMME
FOOD STANDARDS AGENCY - Westminster,FOOD STANDARDS AGENCY - Westminster,2019-03-15,EXP - SHORT-TERM CONTRACT & AGENCY STAFF - FULL COST,Digital,ALEXANDER MANN SOLUTIONS LTD-2WM,1011708901,5912.93,TEMPORARY STAFF,EC2N 3AQ,ADMIN
FOOD STANDARDS AGENCY - Westminster,FOOD STANDARDS AGENCY - Westminster,2019-03-12,EXP - SHORT-TERM CONTRACT & AGENCY STAFF - FULL COST,Finance Director & Branch,ALEXANDER MANN SOLUTIONS LTD-2WM,1011708829,5424.82,TEMPORARY STAFF,EC2N 3AQ,ADMIN
FOOD STANDARDS AGENCY - Westminster,FOOD STANDARDS AGENCY - Westminster,2019-03-01,EXP - SHORT-TERM CONTRACT & AGENCY STAFF - FULL COST,Operational Delivery,ALEXANDER MANN SOLUTIONS LTD-2WM,1011708694,5296.98,TEMPORARY STAFF,EC2N 3AQ,PROGRAMME
FOOD STANDARDS AGENCY - Westminster,FOOD STANDARDS AGENCY - Westminster,2019-03-12,EXP - SHORT-TERM CONTRACT & AGENCY STAFF - FULL COST,Operational Delivery,ALEXANDER MANN SOLUTIONS LTD-2WM,1011708829,5296.98,TEMPORARY STAFF,EC2N 3AQ,PROGRAMME
FOOD STANDARDS AGENCY - Westminster,FOOD STANDARDS AGENCY - Westminster,2019-03-15,EXP - SHORT-TERM CONTRACT & AGENCY STAFF - FULL COST,Operational Delivery,ALEXANDER MANN SOLUTIONS LTD-2WM,1011708901,5296.98,TEMPORARY STAFF,EC2N 3AQ,PROGRAMME
FOOD STANDARDS AGENCY - Westminster,FOOD STANDARDS AGENCY - Westminster,2019-03-22,EXP - SHORT-TERM CONTRACT & AGENCY STAFF - FULL COST,Operational Delivery,ALEXANDER MANN SOLUTIONS LTD-2WM,1011708968,5296.98,TEMPORARY STAFF,EC2N 3AQ,PROGRAMME
FOOD STANDARDS AGENCY - Westminster,FOOD STANDARDS AGENCY - Westminster,2019-03-25,EXP - PURCHASE OF GOODS/SERVICES - IT MANAGEMENT AND CHANGE - IT DEVELOPMENT,IT Strategy,MOZAIC SERVICES LTD,1011708988,4995,IT CAPABLITY,EC2R 7HG,ADMIN
FOOD STANDARDS AGENCY - Westminster,FOOD STANDARDS AGENCY - Westminster,2019-03-05,EXP - AMORTISATION - INTANGIBLE ASSETS,Regulating our Future,ORDNANCE SURVEY,1011708737,4590,ROF - Unified View,SO16 0AS,CAPITAL
FOOD STANDARDS AGENCY - Westminster,FOOD STANDARDS AGENCY - Westminster,2019-03-01,EXP - SHORT-TERM CONTRACT & AGENCY STAFF - FULL COST,NFCU Phase 2,ALEXANDER MANN SOLUTIONS LTD-2WM,1011708694,3461.28,TEMPORARY STAFF,EC2N 3AQ,PROGRAMME
FOOD STANDARDS AGENCY - Westminster,FOOD STANDARDS AGENCY - Westminster,2019-03-12,EXP - SHORT-TERM CONTRACT & AGENCY STAFF - FULL COST,NFCU Phase 2,ALEXANDER MANN SOLUTIONS LTD-2WM,1011708829,3418.14,TEMPORARY STAFF,EC2N 3AQ,PROGRAMME
FOOD STANDARDS AGENCY - Westminster,FOOD STANDARDS AGENCY - Westminster,2019-03-15,EXP - SHORT-TERM CONTRACT & AGENCY STAFF - FULL COST,NFCU Phase 2,ALEXANDER MANN SOLUTIONS LTD-2WM,1011708901,3418.14,TEMPORARY STAFF,EC2N 3AQ,PROGRAMME
FOOD STANDARDS AGENCY - Westminster,FOOD STANDARDS AGENCY - Westminster,2019-03-01,EXP - SHORT-TERM CONTRACT & AGENCY STAFF - FULL COST,Comms Directors Office,ALEXANDER MANN SOLUTIONS LTD-2WM,1011708694,3386.77,TEMPORARY STAFF,EC2N 3AQ,ADMIN
FOOD STANDARDS AGENCY - Westminster,FOOD STANDARDS AGENCY - Westminster,2019-03-15,EXP - SHORT-TERM CONTRACT & AGENCY STAFF - FULL COST,Comms Directors Office,ALEXANDER MANN SOLUTIONS LTD-2WM,1011708901,3386.75,TEMPORARY STAFF,EC2N 3AQ,ADMIN
FOOD STANDARDS AGENCY - Westminster,FOOD STANDARDS AGENCY - Westminster,2019-03-22,EXP - SHORT-TERM CONTRACT & AGENCY STAFF - FULL COST,Comms Directors Office,ALEXANDER MANN SOLUTIONS LTD-2WM,1011708968,3386.74,TEMPORARY STAFF,EC2N 3AQ,ADMIN
FOOD STANDARDS AGENCY - Westminster,FOOD STANDARDS AGENCY - Westminster,2019-03-12,EXP - PURCHASE OF GOODS/SERVICES - OTHER TRAVEL,NFCU Phase 2,CORPORATE TRAVEL MANAGEMENT NORTH LTD,1011709442,3259.99,TRAVEL EXPENSES WEEK 9,BD1 5HQ,PROGRAMME
FOOD STANDARDS AGENCY - Westminster,FOOD STANDARDS AGENCY - Westminster,2019-03-12,EXP - PURCHASE OF GOODS/SERVICES - OTHER TRAVEL,Non Meat Field Ops,CORPORATE TRAVEL MANAGEMENT NORTH LTD,1011709442,3098.33,TRAVEL EXPENSES WEEK 9,BD1 5HQ,PROGRAMME
FOOD STANDARDS AGENCY - Westminster,FOOD STANDARDS AGENCY - Westminster,2019-03-15,EXP - SHORT-TERM CONTRACT & AGENCY STAFF - FULL COST,Finance Director & Branch,ALEXANDER MANN SOLUTIONS LTD-2WM,1011708901,3094.87,TEMPORARY STAFF,EC2N 3AQ,ADMIN
FOOD STANDARDS AGENCY - Westminster,FOOD STANDARDS AGENCY - Westminster,2019-03-12,EXP - PURCHASE OF GOODS/SERVICES - OTHER TRAVEL,Operational Delivery,CORPORATE TRAVEL MANAGEMENT NORTH LTD,1011709442,3020.28,TRAVEL EXPENSES WEEK 9,BD1 5HQ,PROGRAMME
FOOD STANDARDS AGENCY - Westminster,FOOD STANDARDS AGENCY - Westminster,2019-03-12,EXP - SHORT-TERM CONTRACT & AGENCY STAFF - FULL COST,IT Service Delivery,ALEXANDER MANN SOLUTIONS LTD-2WM,1011708829,2956.44,TEMPORARY STAFF,EC2N 3AQ,ADMIN
FOOD STANDARDS AGENCY - Westminster,FOOD STANDARDS AGENCY - Westminster,2019-03-15,EXP - PURCHASE OF GOODS/SERVICES - RAIL TRAVEL,NFCU Phase 2,CORPORATE TRAVEL MANAGEMENT NORTH LTD,1011708911,2951.91,TRAVEL EXPENSES  - WEEK 10,BD1 5HQ,PROGRAMME
FOOD STANDARDS AGENCY - Westminster,FOOD STANDARDS AGENCY - Westminster,2019-03-12,EXP - PURCHASE OF GOODS/SERVICES - OTHER TRAVEL,Operations Assurance ,CORPORATE TRAVEL MANAGEMENT NORTH LTD,1011709442,2812.95,TRAVEL EXPENSES WEEK 9,BD1 5HQ,PROGRAMME
FOOD STANDARDS AGENCY - Westminster,FOOD STANDARDS AGENCY - Westminster,2019-03-28,EXP - PURCHASE OF GOODS/SERVICES - SUBSISTENCE,Non Meat Field Ops,CORPORATE TRAVEL MANAGEMENT NORTH LTD,1011709059,2743.23,BUSINESS TRAVEL WEEK 11,BD1 1PL,PROGRAMME
FOOD STANDARDS AGENCY - Westminster,FOOD STANDARDS AGENCY - Westminster,2019-03-28,EXP - PURCHASE OF GOODS/SERVICES - RAIL TRAVEL,Operational Delivery,CORPORATE TRAVEL MANAGEMENT NORTH LTD,1011709059,2618.05,BUSINESS TRAVEL WEEK 11,BD1 1PL,PROGRAMME
FOOD STANDARDS AGENCY - Westminster,FOOD STANDARDS AGENCY - Westminster,2019-03-22,EXP - SHORT-TERM CONTRACT & AGENCY STAFF - FULL COST,NFCU Phase 2,ALEXANDER MANN SOLUTIONS LTD-2WM,1011708968,2584.5,TEMPORARY STAFF,EC2N 3AQ,PROGRAMME
FOOD STANDARDS AGENCY - Westminster,FOOD STANDARDS AGENCY - Westminster,2019-03-15,EXP - PURCHASE OF GOODS/SERVICES - RAIL TRAVEL,Corporate Support Unit,CORPORATE TRAVEL MANAGEMENT NORTH LTD,1011708911,2509.35,TRAVEL EXPENSES  - WEEK 10,BD1 5HQ,ADMIN
FOOD STANDARDS AGENCY - Westminster,FOOD STANDARDS AGENCY - Westminster,2019-03-12,EXP - PURCHASE OF GOODS/SERVICES - OTHER TRAVEL,Resilience - Admin,CORPORATE TRAVEL MANAGEMENT NORTH LTD,1011709442,2498.96,TRAVEL EXPENSES WEEK 9,BD1 5HQ,ADMIN
FOOD STANDARDS AGENCY - Westminster,FOOD STANDARDS AGENCY - Westminster,2019-03-15,EXP - PURCHASE OF GOODS/SERVICES - RAIL TRAVEL,Operational Delivery,CORPORATE TRAVEL MANAGEMENT NORTH LTD,1011708911,2333.85,TRAVEL EXPENSES  - WEEK 10,BD1 5HQ,PROGRAMME
FOOD STANDARDS AGENCY - Westminster,FOOD STANDARDS AGENCY - Westminster,2019-03-12,EXP - SHORT-TERM CONTRACT & AGENCY STAFF - FULL COST,Comms Directors Office,ALEXANDER MANN SOLUTIONS LTD-2WM,1011708829,2073.99,TEMPORARY STAFF,EC2N 3AQ,ADMIN
FOOD STANDARDS AGENCY - Westminster,FOOD STANDARDS AGENCY - Westminster,2019-03-28,EXP - PURCHASE OF GOODS/SERVICES - SUBSISTENCE,Regulatory & International,CORPORATE TRAVEL MANAGEMENT NORTH LTD,1011709059,2052.87,BUSINESS TRAVEL WEEK 11,BD1 1PL,ADMIN
FOOD STANDARDS AGENCY - Westminster,FOOD STANDARDS AGENCY - Westminster,2019-03-04,EXP - PURCHASE OF GOODS/SERVICES - RAIL TRAVEL,Operational Delivery,CORPORATE TRAVEL MANAGEMENT NORTH LTD,1011708715,1894.35,TRAVEL WEEK 8 UK,BD1 5HQ,PROGRAMME
FOOD STANDARDS AGENCY - Westminster,FOOD STANDARDS AGENCY - Westminster,2019-03-28,EXP - PURCHASE OF GOODS/SERVICES - SUBSISTENCE,Chair & Deputy Chair,CORPORATE TRAVEL MANAGEMENT NORTH LTD,1011709059,1807.97,BUSINESS TRAVEL WEEK 11,BD1 1PL,ADMIN
FOOD STANDARDS AGENCY - Westminster,FOOD STANDARDS AGENCY - Westminster,2019-03-15,EXP - PURCHASE OF GOODS/SERVICES - RAIL TRAVEL,Chief Executive & Private Office,CORPORATE TRAVEL MANAGEMENT NORTH LTD,1011708911,1772.95,TRAVEL EXPENSES  - WEEK 10,BD1 5HQ,ADMIN
FOOD STANDARDS AGENCY - Westminster,FOOD STANDARDS AGENCY - Westminster,2019-03-28,EXP - PURCHASE OF GOODS/SERVICES - SUBSISTENCE,NFCU Phase 2,CORPORATE TRAVEL MANAGEMENT NORTH LTD,1011709059,1730.65,BUSINESS TRAVEL WEEK 11,BD1 1PL,PROGRAMME
FOOD STANDARDS AGENCY - Westminster,FOOD STANDARDS AGENCY - Westminster,2019-03-15,EXP - PURCHASE OF GOODS/SERVICES - RAIL TRAVEL,Operations Assurance ,CORPORATE TRAVEL MANAGEMENT NORTH LTD,1011708911,1695.45,TRAVEL EXPENSES  - WEEK 10,BD1 5HQ,PROGRAMME
FOOD STANDARDS AGENCY - Westminster,FOOD STANDARDS AGENCY - Westminster,2019-03-28,EXP - PURCHASE OF GOODS/SERVICES - SUBSISTENCE,Operational Delivery,CORPORATE TRAVEL MANAGEMENT NORTH LTD,1011709059,1678.3,BUSINESS TRAVEL WEEK 11,BD1 1PL,PROGRAMME
FOOD STANDARDS AGENCY - Westminster,FOOD STANDARDS AGENCY - Westminster,2019-03-28,EXP - PURCHASE OF GOODS/SERVICES - RAIL TRAVEL,Non Meat Field Ops,CORPORATE TRAVEL MANAGEMENT NORTH LTD,1011709059,1649.7,BUSINESS TRAVEL WEEK 11,BD1 1PL,PROGRAMME
FOOD STANDARDS AGENCY - Westminster,FOOD STANDARDS AGENCY - Westminster,2019-03-28,EXP - PURCHASE OF GOODS/SERVICES - SUBSISTENCE,Imports & Exports Team (Admin),CORPORATE TRAVEL MANAGEMENT NORTH LTD,1011709059,1612.52,BUSINESS TRAVEL WEEK 11,BD1 1PL,ADMIN
FOOD STANDARDS AGENCY - Westminster,FOOD STANDARDS AGENCY - Westminster,2019-03-28,EXP - PURCHASE OF GOODS/SERVICES - RAIL TRAVEL,Operations Assurance ,CORPORATE TRAVEL MANAGEMENT NORTH LTD,1011709059,1591.5,BUSINESS TRAVEL WEEK 11,BD1 1PL,PROGRAMME
FOOD STANDARDS AGENCY - Westminster,FOOD STANDARDS AGENCY - Westminster,2019-03-15,EXP - PURCHASE OF GOODS/SERVICES - RAIL TRAVEL,Regulatory Delivery,CORPORATE TRAVEL MANAGEMENT NORTH LTD,1011708911,1528.6,TRAVEL EXPENSES  - WEEK 10,BD1 5HQ,ADMIN
FOOD STANDARDS AGENCY - Westminster,FOOD STANDARDS AGENCY - Westminster,2019-03-04,EXP - PURCHASE OF GOODS/SERVICES - RAIL TRAVEL,NFCU Phase 2,CORPORATE TRAVEL MANAGEMENT NORTH LTD,1011708715,1457.75,TRAVEL WEEK 8 UK,BD1 5HQ,PROGRAMME
FOOD STANDARDS AGENCY - Westminster,FOOD STANDARDS AGENCY - Westminster,2019-03-28,EXP - PURCHASE OF GOODS/SERVICES - RAIL TRAVEL,Organisational Development,CORPORATE TRAVEL MANAGEMENT NORTH LTD,1011709059,1421.3,BUSINESS TRAVEL WEEK 11,BD1 1PL,ADMIN
FOOD STANDARDS AGENCY - Westminster,FOOD STANDARDS AGENCY - Westminster,2019-03-28,EXP - PURCHASE OF GOODS/SERVICES - FOREIGN SUBSISTENCE,Analytics Unit,CORPORATE TRAVEL MANAGEMENT NORTH LTD,1011709059,1389.58,BUSINESS TRAVEL WEEK 11,BD1 1PL,ADMIN
FOOD STANDARDS AGENCY - Westminster,FOOD STANDARDS AGENCY - Westminster,2019-03-12,EXP - PURCHASE OF GOODS/SERVICES - OTHER TRAVEL,Operational Delivery,CORPORATE TRAVEL MANAGEMENT NORTH LTD,1011709442,1294.15,TRAVEL EXPENSES WEEK 9,BD1 5HQ,PROGRAMME
FOOD STANDARDS AGENCY - Westminster,FOOD STANDARDS AGENCY - Westminster,2019-03-28,EXP - PURCHASE OF GOODS/SERVICES - RAIL TRAVEL,Regulatory Delivery,CORPORATE TRAVEL MANAGEMENT NORTH LTD,1011709059,1287.31,BUSINESS TRAVEL WEEK 11,BD1 1PL,ADMIN
FOOD STANDARDS AGENCY - Westminster,FOOD STANDARDS AGENCY - Westminster,2019-03-12,EXP - PURCHASE OF GOODS/SERVICES - OTHER TRAVEL,NFCU Phase 2,CORPORATE TRAVEL MANAGEMENT NORTH LTD,1011709442,1276.9,TRAVEL EXPENSES WEEK 9,BD1 5HQ,PROGRAMME
FOOD STANDARDS AGENCY - Westminster,FOOD STANDARDS AGENCY - Westminster,2019-03-04,EXP - PURCHASE OF GOODS/SERVICES - RAIL TRAVEL,Comms Directors Office,CORPORATE TRAVEL MANAGEMENT NORTH LTD,1011708715,1274.15,TRAVEL WEEK 8 UK,BD1 5HQ,ADMIN
FOOD STANDARDS AGENCY - Westminster,FOOD STANDARDS AGENCY - Westminster,2019-03-12,EXP - PURCHASE OF GOODS/SERVICES - OTHER TRAVEL,Regulatory Delivery,CORPORATE TRAVEL MANAGEMENT NORTH LTD,1011709442,1271.4,TRAVEL EXPENSES WEEK 9,BD1 5HQ,ADMIN
FOOD STANDARDS AGENCY - Westminster,FOOD STANDARDS AGENCY - Westminster,2019-03-28,EXP - PURCHASE OF GOODS/SERVICES - RAIL TRAVEL,NFCU Phase 2,CORPORATE TRAVEL MANAGEMENT NORTH LTD,1011709059,1254.35,BUSINESS TRAVEL WEEK 11,BD1 1PL,PROGRAMME
FOOD STANDARDS AGENCY - Westminster,FOOD STANDARDS AGENCY - Westminster,2019-03-12,EXP - PURCHASE OF GOODS/SERVICES - OTHER TRAVEL,IT Information & Knowledge Management,CORPORATE TRAVEL MANAGEMENT NORTH LTD,1011709442,1250.1,TRAVEL EXPENSES WEEK 9,BD1 5HQ,ADMIN
FOOD STANDARDS AGENCY - Westminster,FOOD STANDARDS AGENCY - Westminster,2019-03-15,EXP - PURCHASE OF GOODS/SERVICES - RAIL TRAVEL,Planning and Performance,CORPORATE TRAVEL MANAGEMENT NORTH LTD,1011708911,1207.9,TRAVEL EXPENSES  - WEEK 10,BD1 5HQ,ADMIN
FOOD STANDARDS AGENCY - Westminster,FOOD STANDARDS AGENCY - Westminster,2019-03-15,EXP - PURCHASE OF GOODS/SERVICES - RAIL TRAVEL,IT Information & Knowledge Management,CORPORATE TRAVEL MANAGEMENT NORTH LTD,1011708911,1186.9,TRAVEL EXPENSES  - WEEK 10,BD1 5HQ,ADMIN
FOOD STANDARDS AGENCY - Westminster,FOOD STANDARDS AGENCY - Westminster,2019-03-22,EXP - SHORT-TERM CONTRACT & AGENCY STAFF - FULL COST,Corporate Support Unit,ALEXANDER MANN SOLUTIONS LTD-2WM,1011708968,1163.21,TEMPORARY STAFF,EC2N 3AQ,ADMIN
FOOD STANDARDS AGENCY - Westminster,FOOD STANDARDS AGENCY - Westminster,2019-03-12,EXP - PURCHASE OF GOODS/SERVICES - OTHER TRAVEL,Regulating our Future,CORPORATE TRAVEL MANAGEMENT NORTH LTD,1011709442,1140.95,TRAVEL EXPENSES WEEK 9,BD1 5HQ,ADMIN
FOOD STANDARDS AGENCY - Westminster,FOOD STANDARDS AGENCY - Westminster,2019-03-28,EXP - PURCHASE OF GOODS/SERVICES - RAIL TRAVEL,Comms Directors Office,CORPORATE TRAVEL MANAGEMENT NORTH LTD,1011709059,1101.4,BUSINESS TRAVEL WEEK 11,BD1 1PL,ADMIN
FOOD STANDARDS AGENCY - Westminster,FOOD STANDARDS AGENCY - Westminster,2019-03-15,EXP - PURCHASE OF GOODS/SERVICES - FOREIGN SUBSISTENCE,"Novel Foods, GM, Radiological and Feed Additives",CORPORATE TRAVEL MANAGEMENT NORTH LTD,1011708911,1085.48,TRAVEL EXPENSES  - WEEK 10,BD1 5HQ,ADMIN
FOOD STANDARDS AGENCY - Westminster,FOOD STANDARDS AGENCY - Westminster,2019-03-04,EXP - PURCHASE OF GOODS/SERVICES - SUBSISTENCE,NFCU Phase 2,CORPORATE TRAVEL MANAGEMENT NORTH LTD,1011708715,1057.8,TRAVEL WEEK 8 UK,BD1 5HQ,PROGRAMME
FOOD STANDARDS AGENCY - Westminster,FOOD STANDARDS AGENCY - Westminster,2019-03-28,EXP - PURCHASE OF GOODS/SERVICES - SUBSISTENCE,"Novel Foods, GM, Radiological and Feed Additives",CORPORATE TRAVEL MANAGEMENT NORTH LTD,1011709059,1047.87,BUSINESS TRAVEL WEEK 11,BD1 1PL,ADMIN
FOOD STANDARDS AGENCY - Westminster,FOOD STANDARDS AGENCY - Westminster,2019-03-26,EXP - PURCHASE OF GOODS/SERVICES - TELECOMS - MOBILE PHONES,IT Service Delivery,EE LTD,1011709003,981.94,SERVICE CHARGES,AL10 9BW,ADMIN
FOOD STANDARDS AGENCY - Westminster,FOOD STANDARDS AGENCY - Westminster,2019-03-28,EXP - PURCHASE OF GOODS/SERVICES - FOREIGN SUBSISTENCE,"Food Additives, Flavourings, and Food Contact Materials",CORPORATE TRAVEL MANAGEMENT NORTH LTD,1011709059,977.66,BUSINESS TRAVEL WEEK 11,BD1 1PL,ADMIN
FOOD STANDARDS AGENCY - Westminster,FOOD STANDARDS AGENCY - Westminster,2019-03-04,EXP - PURCHASE OF GOODS/SERVICES - RAIL TRAVEL,Organisational Development,CORPORATE TRAVEL MANAGEMENT NORTH LTD,1011708715,968.2,TRAVEL WEEK 8 UK,BD1 5HQ,ADMIN
FOOD STANDARDS AGENCY - Westminster,FOOD STANDARDS AGENCY - Westminster,2019-03-15,EXP - PURCHASE OF GOODS/SERVICES - RAIL TRAVEL,Food Incidents & Resilience - Prog,CORPORATE TRAVEL MANAGEMENT NORTH LTD,1011708911,945.45,TRAVEL EXPENSES  - WEEK 10,BD1 5HQ,PROGRAMME
FOOD STANDARDS AGENCY - Westminster,FOOD STANDARDS AGENCY - Westminster,2019-03-15,EXP - PURCHASE OF GOODS/SERVICES - SUBSISTENCE,NFCU Phase 2,CORPORATE TRAVEL MANAGEMENT NORTH LTD,1011708911,938.82,TRAVEL EXPENSES  - WEEK 10,BD1 5HQ,PROGRAMME
FOOD STANDARDS AGENCY - Westminster,FOOD STANDARDS AGENCY - Westminster,2019-03-15,EXP - PURCHASE OF GOODS/SERVICES - SUBSISTENCE,IT Information & Knowledge Management,CORPORATE TRAVEL MANAGEMENT NORTH LTD,1011708911,931.5,TRAVEL EXPENSES  - WEEK 10,BD1 5HQ,ADMIN
FOOD STANDARDS AGENCY - Westminster,FOOD STANDARDS AGENCY - Westminster,2019-03-28,EXP - PURCHASE OF GOODS/SERVICES - RAIL TRAVEL,IT Service Delivery,CORPORATE TRAVEL MANAGEMENT NORTH LTD,1011709059,909.2,BUSINESS TRAVEL WEEK 11,BD1 1PL,ADMIN
FOOD STANDARDS AGENCY - Westminster,FOOD STANDARDS AGENCY - Westminster,2019-03-15,EXP - PURCHASE OF GOODS/SERVICES - RAIL TRAVEL,Legal Branch A & Investigations,CORPORATE TRAVEL MANAGEMENT NORTH LTD,1011708911,908.8,TRAVEL EXPENSES  - WEEK 10,BD1 5HQ,ADMIN
FOOD STANDARDS AGENCY - Westminster,FOOD STANDARDS AGENCY - Westminster,2019-03-12,EXP - PURCHASE OF GOODS/SERVICES - OTHER TRAVEL,Non Meat Field Ops,CORPORATE TRAVEL MANAGEMENT NORTH LTD,1011709442,905.9,TRAVEL EXPENSES WEEK 9,BD1 5HQ,PROGRAMME
FOOD STANDARDS AGENCY - Westminster,FOOD STANDARDS AGENCY - Westminster,2019-03-12,EXP - PURCHASE OF GOODS/SERVICES - OTHER TRAVEL,Regulating our Future,CORPORATE TRAVEL MANAGEMENT NORTH LTD,1011709442,865.74,TRAVEL EXPENSES WEEK 9,BD1 5HQ,ADMIN
FOOD STANDARDS AGENCY - Westminster,FOOD STANDARDS AGENCY - Westminster,2019-03-01,EXP - SHORT-TERM CONTRACT & AGENCY STAFF - FULL COST,Corporate Support Unit,ALEXANDER MANN SOLUTIONS LTD-2WM,1011708694,844.59,TEMPORARY STAFF,EC2N 3AQ,ADMIN
FOOD STANDARDS AGENCY - Westminster,FOOD STANDARDS AGENCY - Westminster,2019-03-15,EXP - PURCHASE OF GOODS/SERVICES - RAIL TRAVEL,Chief Scientific Advisors team,CORPORATE TRAVEL MANAGEMENT NORTH LTD,1011708911,842.95,TRAVEL EXPENSES  - WEEK 10,BD1 5HQ,ADMIN
FOOD STANDARDS AGENCY - Westminster,FOOD STANDARDS AGENCY - Westminster,2019-03-15,EXP - PURCHASE OF GOODS/SERVICES - FOREIGN SUBSISTENCE,Regulating our Future,CORPORATE TRAVEL MANAGEMENT NORTH LTD,1011708911,836.47,TRAVEL EXPENSES  - WEEK 10,BD1 5HQ,ADMIN
FOOD STANDARDS AGENCY - Westminster,FOOD STANDARDS AGENCY - Westminster,2019-03-28,EXP - PURCHASE OF GOODS/SERVICES - SUBSISTENCE,Legal Branch A & Investigations,CORPORATE TRAVEL MANAGEMENT NORTH LTD,1011709059,827.66,BUSINESS TRAVEL WEEK 11,BD1 1PL,ADMIN
FOOD STANDARDS AGENCY - Westminster,FOOD STANDARDS AGENCY - Westminster,2019-03-04,EXP - PURCHASE OF GOODS/SERVICES - AIR TRAVEL,Operations Assurance ,CORPORATE TRAVEL MANAGEMENT NORTH LTD,1011708715,813.57,TRAVEL WEEK 8 UK,BD1 5HQ,PROGRAMME
FOOD STANDARDS AGENCY - Westminster,FOOD STANDARDS AGENCY - Westminster,2019-03-04,EXP - PURCHASE OF GOODS/SERVICES - RAIL TRAVEL,Finance Director & Branch,CORPORATE TRAVEL MANAGEMENT NORTH LTD,1011708715,802.95,TRAVEL WEEK 8 UK,BD1 5HQ,ADMIN
FOOD STANDARDS AGENCY - Westminster,FOOD STANDARDS AGENCY - Westminster,2019-03-12,EXP - PURCHASE OF GOODS/SERVICES - OTHER TRAVEL,Corporate Support Unit,CORPORATE TRAVEL MANAGEMENT NORTH LTD,1011709442,801.9,TRAVEL EXPENSES WEEK 9,BD1 5HQ,ADMIN
FOOD STANDARDS AGENCY - Westminster,FOOD STANDARDS AGENCY - Westminster,2019-03-12,EXP - PURCHASE OF GOODS/SERVICES - OTHER TRAVEL,Organisational Development,CORPORATE TRAVEL MANAGEMENT NORTH LTD,1011709442,771.46,TRAVEL EXPENSES WEEK 9,BD1 5HQ,ADMIN
FOOD STANDARDS AGENCY - Westminster,FOOD STANDARDS AGENCY - Westminster,2019-03-28,EXP - PURCHASE OF GOODS/SERVICES - SUBSISTENCE,Operations Assurance ,CORPORATE TRAVEL MANAGEMENT NORTH LTD,1011709059,770.9,BUSINESS TRAVEL WEEK 11,BD1 1PL,PROGRAMME
FOOD STANDARDS AGENCY - Westminster,FOOD STANDARDS AGENCY - Westminster,2019-03-28,EXP - PURCHASE OF GOODS/SERVICES - RAIL TRAVEL,IT Information & Knowledge Management,CORPORATE TRAVEL MANAGEMENT NORTH LTD,1011709059,766.5,BUSINESS TRAVEL WEEK 11,BD1 1PL,ADMIN
FOOD STANDARDS AGENCY - Westminster,FOOD STANDARDS AGENCY - Westminster,2019-03-15,EXP - PURCHASE OF GOODS/SERVICES - RAIL TRAVEL,Organisational Development,CORPORATE TRAVEL MANAGEMENT NORTH LTD,1011708911,763.45,TRAVEL EXPENSES  - WEEK 10,BD1 5HQ,ADMIN
FOOD STANDARDS AGENCY - Westminster,FOOD STANDARDS AGENCY - Westminster,2019-03-04,EXP - PURCHASE OF GOODS/SERVICES - SUBSISTENCE,Internal Audit,CORPORATE TRAVEL MANAGEMENT NORTH LTD,1011708715,706.34,TRAVEL WEEK 8 UK,BD1 5HQ,ADMIN
FOOD STANDARDS AGENCY - Westminster,FOOD STANDARDS AGENCY - Westminster,2019-03-28,EXP - PURCHASE OF GOODS/SERVICES - FOREIGN SUBSISTENCE,Chemical Contaminants and Residues,CORPORATE TRAVEL MANAGEMENT NORTH LTD,1011709059,704.68,BUSINESS TRAVEL WEEK 11,BD1 1PL,ADMIN
FOOD STANDARDS AGENCY - Westminster,FOOD STANDARDS AGENCY - Westminster,2019-03-15,EXP - PURCHASE OF GOODS/SERVICES - RAIL TRAVEL,Finance Director & Branch,CORPORATE TRAVEL MANAGEMENT NORTH LTD,1011708911,703.15,TRAVEL EXPENSES  - WEEK 10,BD1 5HQ,ADMIN
FOOD STANDARDS AGENCY - Westminster,FOOD STANDARDS AGENCY - Westminster,2019-03-28,EXP - PURCHASE OF GOODS/SERVICES - RAIL TRAVEL,Regulatory & International,CORPORATE TRAVEL MANAGEMENT NORTH LTD,1011709059,692.4,BUSINESS TRAVEL WEEK 11,BD1 1PL,ADMIN
FOOD STANDARDS AGENCY - Westminster,FOOD STANDARDS AGENCY - Westminster,2019-03-04,EXP - PURCHASE OF GOODS/SERVICES - RAIL TRAVEL,IT Information & Knowledge Management,CORPORATE TRAVEL MANAGEMENT NORTH LTD,1011708715,678.15,TRAVEL WEEK 8 UK,BD1 5HQ,ADMIN
FOOD STANDARDS AGENCY - Westminster,FOOD STANDARDS AGENCY - Westminster,2019-03-04,EXP - PURCHASE OF GOODS/SERVICES - SUBSISTENCE,Organisational Development,CORPORATE TRAVEL MANAGEMENT NORTH LTD,1011708715,671.25,TRAVEL WEEK 8 UK,BD1 5HQ,ADMIN
FOOD STANDARDS AGENCY - Westminster,FOOD STANDARDS AGENCY - Westminster,2019-03-28,EXP - PURCHASE OF GOODS/SERVICES - SUBSISTENCE,Regulatory Delivery,CORPORATE TRAVEL MANAGEMENT NORTH LTD,1011709059,661.85,BUSINESS TRAVEL WEEK 11,BD1 1PL,ADMIN
FOOD STANDARDS AGENCY - Westminster,FOOD STANDARDS AGENCY - Westminster,2019-03-15,EXP - PURCHASE OF GOODS/SERVICES - SUBSISTENCE,Non Meat Field Ops,CORPORATE TRAVEL MANAGEMENT NORTH LTD,1011708911,659.4,TRAVEL EXPENSES  - WEEK 10,BD1 5HQ,PROGRAMME
FOOD STANDARDS AGENCY - Westminster,FOOD STANDARDS AGENCY - Westminster,2019-03-28,EXP - PURCHASE OF GOODS/SERVICES - SUBSISTENCE,Comms Directors Office,CORPORATE TRAVEL MANAGEMENT NORTH LTD,1011709059,658.6,BUSINESS TRAVEL WEEK 11,BD1 1PL,ADMIN
FOOD STANDARDS AGENCY - Westminster,FOOD STANDARDS AGENCY - Westminster,2019-03-15,EXP - PURCHASE OF GOODS/SERVICES - RAIL TRAVEL,Non Meat Field Ops,CORPORATE TRAVEL MANAGEMENT NORTH LTD,1011708911,651.55,TRAVEL EXPENSES  - WEEK 10,BD1 5HQ,PROGRAMME
FOOD STANDARDS AGENCY - Westminster,FOOD STANDARDS AGENCY - Westminster,2019-03-28,EXP - PURCHASE OF GOODS/SERVICES - RAIL TRAVEL,Regulating our Future,CORPORATE TRAVEL MANAGEMENT NORTH LTD,1011709059,645.45,BUSINESS TRAVEL WEEK 11,BD1 1PL,ADMIN
FOOD STANDARDS AGENCY - Westminster,FOOD STANDARDS AGENCY - Westminster,2019-03-22,EXP - SHORT-TERM CONTRACT & AGENCY STAFF - FULL COST,Finance Director & Branch,ALEXANDER MANN SOLUTIONS LTD-2WM,1011708968,633.59,TEMPORARY STAFF,EC2N 3AQ,ADMIN
FOOD STANDARDS AGENCY - Westminster,FOOD STANDARDS AGENCY - Westminster,2019-03-12,EXP - PURCHASE OF GOODS/SERVICES - OTHER TRAVEL,Programme and project delivery,CORPORATE TRAVEL MANAGEMENT NORTH LTD,1011709442,627.25,TRAVEL EXPENSES WEEK 9,BD1 5HQ,ADMIN
FOOD STANDARDS AGENCY - Westminster,FOOD STANDARDS AGENCY - Westminster,2019-03-15,EXP - PURCHASE OF GOODS/SERVICES - SUBSISTENCE,Regulatory Delivery,CORPORATE TRAVEL MANAGEMENT NORTH LTD,1011708911,623.85,TRAVEL EXPENSES  - WEEK 10,BD1 5HQ,ADMIN
FOOD STANDARDS AGENCY - Westminster,FOOD STANDARDS AGENCY - Westminster,2019-03-28,EXP - PURCHASE OF GOODS/SERVICES - SUBSISTENCE,Organisational Development,CORPORATE TRAVEL MANAGEMENT NORTH LTD,1011709059,623.73,BUSINESS TRAVEL WEEK 11,BD1 1PL,ADMIN
FOOD STANDARDS AGENCY - Westminster,FOOD STANDARDS AGENCY - Westminster,2019-03-04,EXP - PURCHASE OF GOODS/SERVICES - RAIL TRAVEL,Corporate Support Unit,CORPORATE TRAVEL MANAGEMENT NORTH LTD,1011708715,619.65,TRAVEL WEEK 8 UK,BD1 5HQ,ADMIN
FOOD STANDARDS AGENCY - Westminster,FOOD STANDARDS AGENCY - Westminster,2019-03-04,EXP - PURCHASE OF GOODS/SERVICES - SUBSISTENCE,Operational Delivery,CORPORATE TRAVEL MANAGEMENT NORTH LTD,1011708715,617.33,TRAVEL WEEK 8 UK,BD1 5HQ,PROGRAMME
FOOD STANDARDS AGENCY - Westminster,FOOD STANDARDS AGENCY - Westminster,2019-03-15,EXP - PURCHASE OF GOODS/SERVICES - RAIL TRAVEL,Programme and project delivery,CORPORATE TRAVEL MANAGEMENT NORTH LTD,1011708911,613.8,TRAVEL EXPENSES  - WEEK 10,BD1 5HQ,ADMIN
FOOD STANDARDS AGENCY - Westminster,FOOD STANDARDS AGENCY - Westminster,2019-03-15,EXP - PURCHASE OF GOODS/SERVICES - AIR TRAVEL,Organisational Development,CORPORATE TRAVEL MANAGEMENT NORTH LTD,1011708911,613.38,TRAVEL EXPENSES  - WEEK 10,BD1 5HQ,ADMIN
FOOD STANDARDS AGENCY - Westminster,FOOD STANDARDS AGENCY - Westminster,2019-03-12,EXP - PURCHASE OF GOODS/SERVICES - OTHER TRAVEL,Regulatory & International,CORPORATE TRAVEL MANAGEMENT NORTH LTD,1011709442,598.2,TRAVEL EXPENSES WEEK 9,BD1 5HQ,ADMIN
FOOD STANDARDS AGENCY - Westminster,FOOD STANDARDS AGENCY - Westminster,2019-03-01,EXP - SHORT-TERM CONTRACT & AGENCY STAFF - FULL COST,Finance Director & Branch,ALEXANDER MANN SOLUTIONS LTD-2WM,1011708694,589.63,TEMPORARY STAFF,EC2N 3AQ,ADMIN
FOOD STANDARDS AGENCY - Westminster,FOOD STANDARDS AGENCY - Westminster,2019-03-28,EXP - PURCHASE OF GOODS/SERVICES - AIR TRAVEL,Analytics Unit,CORPORATE TRAVEL MANAGEMENT NORTH LTD,1011709059,589.22,BUSINESS TRAVEL WEEK 11,BD1 1PL,ADMIN
FOOD STANDARDS AGENCY - Westminster,FOOD STANDARDS AGENCY - Westminster,2019-03-15,EXP - PURCHASE OF GOODS/SERVICES - AIR TRAVEL,Regulatory & International,CORPORATE TRAVEL MANAGEMENT NORTH LTD,1011708911,585.43,TRAVEL EXPENSES  - WEEK 10,BD1 5HQ,ADMIN
FOOD STANDARDS AGENCY - Westminster,FOOD STANDARDS AGENCY - Westminster,2019-03-04,EXP - PURCHASE OF GOODS/SERVICES - SUBSISTENCE,"Food Additives, Flavourings, and Food Contact Materials",CORPORATE TRAVEL MANAGEMENT NORTH LTD,1011708715,584.05,TRAVEL WEEK 8 UK,BD1 5HQ,ADMIN
FOOD STANDARDS AGENCY - Westminster,FOOD STANDARDS AGENCY - Westminster,2019-03-28,EXP - PURCHASE OF GOODS/SERVICES - FOREIGN SUBSISTENCE,Chief Scientific Advisors team,CORPORATE TRAVEL MANAGEMENT NORTH LTD,1011709059,583.98,BUSINESS TRAVEL WEEK 11,BD1 1PL,ADMIN
FOOD STANDARDS AGENCY - Westminster,FOOD STANDARDS AGENCY - Westminster,2019-03-28,EXP - PURCHASE OF GOODS/SERVICES - SUBSISTENCE,Corporate Support Unit,CORPORATE TRAVEL MANAGEMENT NORTH LTD,1011709059,572,BUSINESS TRAVEL WEEK 11,BD1 1PL,ADMIN
FOOD STANDARDS AGENCY - Westminster,FOOD STANDARDS AGENCY - Westminster,2019-03-04,EXP - PURCHASE OF GOODS/SERVICES - RAIL TRAVEL,IT Service Delivery,CORPORATE TRAVEL MANAGEMENT NORTH LTD,1011708715,571.15,TRAVEL WEEK 8 UK,BD1 5HQ,ADMIN
FOOD STANDARDS AGENCY - Westminster,FOOD STANDARDS AGENCY - Westminster,2019-03-12,EXP - PURCHASE OF GOODS/SERVICES - OTHER TRAVEL,"Novel Foods, GM, Radiological and Feed Additives",CORPORATE TRAVEL MANAGEMENT NORTH LTD,1011709442,567.6,TRAVEL EXPENSES WEEK 9,BD1 5HQ,ADMIN
FOOD STANDARDS AGENCY - Westminster,FOOD STANDARDS AGENCY - Westminster,2019-03-13,EXP - PURCHASE OF GOODS/SERVICES - OTHER PROFESSIONAL SERVICES,Operational Delivery,ARCO UK LTD,1011708870,563.63,Additional Line for PO 11770002606 - 2 year extension to contract,HU1 2SJ,PROGRAMME
FOOD STANDARDS AGENCY - Westminster,FOOD STANDARDS AGENCY - Westminster,2019-03-12,EXP - PURCHASE OF GOODS/SERVICES - OTHER TRAVEL,Comms Directors Office,CORPORATE TRAVEL MANAGEMENT NORTH LTD,1011709442,546.1,TRAVEL EXPENSES WEEK 9,BD1 5HQ,ADMIN
FOOD STANDARDS AGENCY - Westminster,FOOD STANDARDS AGENCY - Westminster,2019-03-04,EXP - PURCHASE OF GOODS/SERVICES - RAIL TRAVEL,Regulating our Future,CORPORATE TRAVEL MANAGEMENT NORTH LTD,1011708715,538.95,TRAVEL WEEK 8 UK,BD1 5HQ,ADMIN
FOOD STANDARDS AGENCY - Westminster,FOOD STANDARDS AGENCY - Westminster,2019-03-28,EXP - PURCHASE OF GOODS/SERVICES - FOREIGN SUBSISTENCE,Allergens,CORPORATE TRAVEL MANAGEMENT NORTH LTD,1011709059,538.69,BUSINESS TRAVEL WEEK 11,BD1 1PL,ADMIN
FOOD STANDARDS AGENCY - Westminster,FOOD STANDARDS AGENCY - Westminster,2019-03-28,EXP - PURCHASE OF GOODS/SERVICES - RAIL TRAVEL,Planning and Performance,CORPORATE TRAVEL MANAGEMENT NORTH LTD,1011709059,536.65,BUSINESS TRAVEL WEEK 11,BD1 1PL,ADMIN
FOOD STANDARDS AGENCY - Westminster,FOOD STANDARDS AGENCY - Westminster,2019-03-12,EXP - PURCHASE OF GOODS/SERVICES - OTHER TRAVEL,Food Incidents & Resilience - Prog,CORPORATE TRAVEL MANAGEMENT NORTH LTD,1011709442,533.5,TRAVEL EXPENSES WEEK 9,BD1 5HQ,PROGRAMME
FOOD STANDARDS AGENCY - Westminster,FOOD STANDARDS AGENCY - Westminster,2019-03-15,EXP - PURCHASE OF GOODS/SERVICES - SUBSISTENCE,Regulatory & International,CORPORATE TRAVEL MANAGEMENT NORTH LTD,1011708911,525.13,TRAVEL EXPENSES  - WEEK 10,BD1 5HQ,ADMIN
FOOD STANDARDS AGENCY - Westminster,FOOD STANDARDS AGENCY - Westminster,2019-03-12,EXP - PURCHASE OF GOODS/SERVICES - OTHER TRAVEL,Organisational Development,CORPORATE TRAVEL MANAGEMENT NORTH LTD,1011709442,519.3,TRAVEL EXPENSES WEEK 9,BD1 5HQ,ADMIN
FOOD STANDARDS AGENCY - Westminster,FOOD STANDARDS AGENCY - Westminster,2019-03-15,EXP - PURCHASE OF GOODS/SERVICES - SUBSISTENCE,Food Incidents & Resilience - Prog,CORPORATE TRAVEL MANAGEMENT NORTH LTD,1011708911,516.93,TRAVEL EXPENSES  - WEEK 10,BD1 5HQ,PROGRAMME
FOOD STANDARDS AGENCY - Westminster,FOOD STANDARDS AGENCY - Westminster,2019-03-04,EXP - PURCHASE OF GOODS/SERVICES -  FOREIGN AIR TRAVEL,"Meat Hygiene, ABP, TSE",CORPORATE TRAVEL MANAGEMENT NORTH LTD,1011708715,513,TRAVEL WEEK 8 UK,BD1 5HQ,ADMIN
FOOD STANDARDS AGENCY - Westminster,FOOD STANDARDS AGENCY - Westminster,2019-03-15,EXP - PURCHASE OF GOODS/SERVICES - RAIL TRAVEL,Wales and West 4 ,CORPORATE TRAVEL MANAGEMENT NORTH LTD,1011708911,509.25,TRAVEL EXPENSES  - WEEK 10,BD1 5HQ,PROGRAMME
FOOD STANDARDS AGENCY - Westminster,FOOD STANDARDS AGENCY - Westminster,2019-03-15,EXP - PURCHASE OF GOODS/SERVICES - FOREIGN SUBSISTENCE,Internal Audit,CORPORATE TRAVEL MANAGEMENT NORTH LTD,1011708911,507.17,TRAVEL EXPENSES  - WEEK 10,BD1 5HQ,ADMIN
FOOD STANDARDS AGENCY - Westminster,FOOD STANDARDS AGENCY - Westminster,2019-03-12,EXP - SHORT-TERM CONTRACT & AGENCY STAFF - FULL COST,Corporate Support Unit,ALEXANDER MANN SOLUTIONS LTD-2WM,1011708829,504.82,TEMPORARY STAFF,EC2N 3AQ,ADMIN
FOOD STANDARDS AGENCY - Westminster,FOOD STANDARDS AGENCY - Westminster,2019-03-28,EXP - PURCHASE OF GOODS/SERVICES - AIR TRAVEL,Regulating our Future,CORPORATE TRAVEL MANAGEMENT NORTH LTD,1011709059,504.23,BUSINESS TRAVEL WEEK 11,BD1 1PL,ADMIN
FOOD STANDARDS AGENCY - Westminster,FOOD STANDARDS AGENCY - Westminster,2019-03-12,EXP - PURCHASE OF GOODS/SERVICES - OTHER TRAVEL,IT Information & Knowledge Management,CORPORATE TRAVEL MANAGEMENT NORTH LTD,1011709442,503.5,TRAVEL EXPENSES WEEK 9,BD1 5HQ,ADMIN
FOOD STANDARDS AGENCY - Westminster,FOOD STANDARDS AGENCY - Westminster,2019-03-28,EXP - PURCHASE OF GOODS/SERVICES - SUBSISTENCE,Regulating our Future,CORPORATE TRAVEL MANAGEMENT NORTH LTD,1011709059,498.8,BUSINESS TRAVEL WEEK 11,BD1 1PL,ADMIN
FOOD STANDARDS AGENCY - Westminster,FOOD STANDARDS AGENCY - Westminster,2019-03-15,EXP - PURCHASE OF GOODS/SERVICES - RAIL TRAVEL,East 1,CORPORATE TRAVEL MANAGEMENT NORTH LTD,1011708911,497.95,TRAVEL EXPENSES  - WEEK 10,BD1 5HQ,PROGRAMME
FOOD STANDARDS AGENCY - Westminster,FOOD STANDARDS AGENCY - Westminster,2019-03-04,EXP - PURCHASE OF GOODS/SERVICES - RAIL TRAVEL,Planning and Performance,CORPORATE TRAVEL MANAGEMENT NORTH LTD,1011708715,491.75,TRAVEL WEEK 8 UK,BD1 5HQ,ADMIN
FOOD STANDARDS AGENCY - Westminster,FOOD STANDARDS AGENCY - Westminster,2019-03-28,EXP - PURCHASE OF GOODS/SERVICES -  FOREIGN AIR TRAVEL,Regulating our Future,CORPORATE TRAVEL MANAGEMENT NORTH LTD,1011709059,486.92,BUSINESS TRAVEL WEEK 11,BD1 1PL,ADMIN
FOOD STANDARDS AGENCY - Westminster,FOOD STANDARDS AGENCY - Westminster,2019-03-28,EXP - PURCHASE OF GOODS/SERVICES - RAIL TRAVEL,Food Crime Unit - Prog,CORPORATE TRAVEL MANAGEMENT NORTH LTD,1011709059,478.75,BUSINESS TRAVEL WEEK 11,BD1 1PL,PROGRAMME
FOOD STANDARDS AGENCY - Westminster,FOOD STANDARDS AGENCY - Westminster,2019-03-04,EXP - PURCHASE OF GOODS/SERVICES - RAIL TRAVEL,Chief Scientific Advisors team,CORPORATE TRAVEL MANAGEMENT NORTH LTD,1011708715,475.2,TRAVEL WEEK 8 UK,BD1 5HQ,ADMIN
FOOD STANDARDS AGENCY - Westminster,FOOD STANDARDS AGENCY - Westminster,2019-03-15,EXP - PURCHASE OF GOODS/SERVICES - SUBSISTENCE,Operations Assurance ,CORPORATE TRAVEL MANAGEMENT NORTH LTD,1011708911,464.4,TRAVEL EXPENSES  - WEEK 10,BD1 5HQ,PROGRAMME
FOOD STANDARDS AGENCY - Westminster,FOOD STANDARDS AGENCY - Westminster,2019-03-28,EXP - PURCHASE OF GOODS/SERVICES - SUBSISTENCE,Food Incidents & Resilience - Prog,CORPORATE TRAVEL MANAGEMENT NORTH LTD,1011709059,463.16,BUSINESS TRAVEL WEEK 11,BD1 1PL,PROGRAMME
FOOD STANDARDS AGENCY - Westminster,FOOD STANDARDS AGENCY - Westminster,2019-03-04,EXP - PURCHASE OF GOODS/SERVICES - RAIL TRAVEL,Food Incidents & Resilience - Prog,CORPORATE TRAVEL MANAGEMENT NORTH LTD,1011708715,460.6,TRAVEL WEEK 8 UK,BD1 5HQ,PROGRAMME
FOOD STANDARDS AGENCY - Westminster,FOOD STANDARDS AGENCY - Westminster,2019-03-15,EXP - PURCHASE OF GOODS/SERVICES -  FOREIGN AIR TRAVEL,"Novel Foods, GM, Radiological and Feed Additives",CORPORATE TRAVEL MANAGEMENT NORTH LTD,1011708911,441.08,TRAVEL EXPENSES  - WEEK 10,BD1 5HQ,ADMIN
FOOD STANDARDS AGENCY - Westminster,FOOD STANDARDS AGENCY - Westminster,2019-03-15,EXP - SHORT-TERM CONTRACT & AGENCY STAFF - FULL COST,Corporate Support Unit,ALEXANDER MANN SOLUTIONS LTD-2WM,1011708901,436.86,TEMPORARY STAFF,EC2N 3AQ,ADMIN
FOOD STANDARDS AGENCY - Westminster,FOOD STANDARDS AGENCY - Westminster,2019-03-28,EXP - PURCHASE OF GOODS/SERVICES - SUBSISTENCE,Incident Handling and Engagement,CORPORATE TRAVEL MANAGEMENT NORTH LTD,1011709059,434.5,BUSINESS TRAVEL WEEK 11,BD1 1PL,ADMIN
FOOD STANDARDS AGENCY - Westminster,FOOD STANDARDS AGENCY - Westminster,2019-03-04,EXP - PURCHASE OF GOODS/SERVICES - RAIL TRAVEL,Regulatory Delivery,CORPORATE TRAVEL MANAGEMENT NORTH LTD,1011708715,430.95,TRAVEL WEEK 8 UK,BD1 5HQ,ADMIN
FOOD STANDARDS AGENCY - Westminster,FOOD STANDARDS AGENCY - Westminster,2019-03-15,EXP - PURCHASE OF GOODS/SERVICES - SUBSISTENCE,Regulating our Future,CORPORATE TRAVEL MANAGEMENT NORTH LTD,1011708911,430.4,TRAVEL EXPENSES  - WEEK 10,BD1 5HQ,ADMIN
FOOD STANDARDS AGENCY - Westminster,FOOD STANDARDS AGENCY - Westminster,2019-03-15,EXP - PURCHASE OF GOODS/SERVICES - RAIL TRAVEL,Procurement,CORPORATE TRAVEL MANAGEMENT NORTH LTD,1011708911,428.5,TRAVEL EXPENSES  - WEEK 10,BD1 5HQ,ADMIN
FOOD STANDARDS AGENCY - Westminster,FOOD STANDARDS AGENCY - Westminster,2019-03-28,EXP - PURCHASE OF GOODS/SERVICES - RAIL TRAVEL,Procurement,CORPORATE TRAVEL MANAGEMENT NORTH LTD,1011709059,426.75,BUSINESS TRAVEL WEEK 11,BD1 1PL,ADMIN
FOOD STANDARDS AGENCY - Westminster,FOOD STANDARDS AGENCY - Westminster,2019-03-15,EXP - PURCHASE OF GOODS/SERVICES - AIR TRAVEL,NFCU Phase 2,CORPORATE TRAVEL MANAGEMENT NORTH LTD,1011708911,425.11,TRAVEL EXPENSES  - WEEK 10,BD1 5HQ,PROGRAMME
FOOD STANDARDS AGENCY - Westminster,FOOD STANDARDS AGENCY - Westminster,2019-03-15,EXP - PURCHASE OF GOODS/SERVICES - SUBSISTENCE,Imports & Exports Team (Admin),CORPORATE TRAVEL MANAGEMENT NORTH LTD,1011708911,424.88,TRAVEL EXPENSES  - WEEK 10,BD1 5HQ,ADMIN
FOOD STANDARDS AGENCY - Westminster,FOOD STANDARDS AGENCY - Westminster,2019-03-15,EXP - PURCHASE OF GOODS/SERVICES - SUBSISTENCE,Chief Scientific Advisors team,CORPORATE TRAVEL MANAGEMENT NORTH LTD,1011708911,413.28,TRAVEL EXPENSES  - WEEK 10,BD1 5HQ,ADMIN
FOOD STANDARDS AGENCY - Westminster,FOOD STANDARDS AGENCY - Westminster,2019-03-28,EXP - PURCHASE OF GOODS/SERVICES - RAIL TRAVEL,North 2,CORPORATE TRAVEL MANAGEMENT NORTH LTD,1011709059,411.7,BUSINESS TRAVEL WEEK 11,BD1 1PL,PROGRAMME
FOOD STANDARDS AGENCY - Westminster,FOOD STANDARDS AGENCY - Westminster,2019-03-28,EXP - PURCHASE OF GOODS/SERVICES - RAIL TRAVEL,Imports & Exports Team (Admin),CORPORATE TRAVEL MANAGEMENT NORTH LTD,1011709059,410.9,BUSINESS TRAVEL WEEK 11,BD1 1PL,ADMIN
FOOD STANDARDS AGENCY - Westminster,FOOD STANDARDS AGENCY - Westminster,2019-03-04,EXP - PURCHASE OF GOODS/SERVICES - FOREIGN SUBSISTENCE,"Novel Foods, GM, Radiological and Feed Additives",CORPORATE TRAVEL MANAGEMENT NORTH LTD,1011708715,410.36,TRAVEL WEEK 8 UK,BD1 5HQ,ADMIN
FOOD STANDARDS AGENCY - Westminster,FOOD STANDARDS AGENCY - Westminster,2019-03-15,EXP - PURCHASE OF GOODS/SERVICES - SUBSISTENCE,Risk Assessment ? research and development,CORPORATE TRAVEL MANAGEMENT NORTH LTD,1011708911,408.61,TRAVEL EXPENSES  - WEEK 10,BD1 5HQ,ADMIN
FOOD STANDARDS AGENCY - Westminster,FOOD STANDARDS AGENCY - Westminster,2019-03-12,EXP - PURCHASE OF GOODS/SERVICES - OTHER TRAVEL,Chief Scientific Advisors team,CORPORATE TRAVEL MANAGEMENT NORTH LTD,1011709442,407.7,TRAVEL EXPENSES WEEK 9,BD1 5HQ,ADMIN
FOOD STANDARDS AGENCY - Westminster,FOOD STANDARDS AGENCY - Westminster,2019-03-12,EXP - PURCHASE OF GOODS/SERVICES - OTHER TRAVEL,Procurement,CORPORATE TRAVEL MANAGEMENT NORTH LTD,1011709442,404.5,TRAVEL EXPENSES WEEK 9,BD1 5HQ,ADMIN
FOOD STANDARDS AGENCY - Westminster,FOOD STANDARDS AGENCY - Westminster,2019-03-15,EXP - PURCHASE OF GOODS/SERVICES - RAIL TRAVEL,Risk Assessment - operations,CORPORATE TRAVEL MANAGEMENT NORTH LTD,1011708911,403.91,TRAVEL EXPENSES  - WEEK 10,BD1 5HQ,ADMIN
FOOD STANDARDS AGENCY - Westminster,FOOD STANDARDS AGENCY - Westminster,2019-03-04,EXP - PURCHASE OF GOODS/SERVICES - SUBSISTENCE,Operations Assurance ,CORPORATE TRAVEL MANAGEMENT NORTH LTD,1011708715,402.32,TRAVEL WEEK 8 UK,BD1 5HQ,PROGRAMME
FOOD STANDARDS AGENCY - Westminster,FOOD STANDARDS AGENCY - Westminster,2019-03-15,EXP - PURCHASE OF GOODS/SERVICES - SUBSISTENCE,Organisational Development,CORPORATE TRAVEL MANAGEMENT NORTH LTD,1011708911,399.75,TRAVEL EXPENSES  - WEEK 10,BD1 5HQ,ADMIN
FOOD STANDARDS AGENCY - Westminster,FOOD STANDARDS AGENCY - Westminster,2019-03-15,EXP - PURCHASE OF GOODS/SERVICES -  FOREIGN AIR TRAVEL,Imports & Exports Team (Admin),CORPORATE TRAVEL MANAGEMENT NORTH LTD,1011708911,398,TRAVEL EXPENSES  - WEEK 10,BD1 5HQ,ADMIN
FOOD STANDARDS AGENCY - Westminster,FOOD STANDARDS AGENCY - Westminster,2019-03-28,EXP - PURCHASE OF GOODS/SERVICES - RAIL TRAVEL,North 4,CORPORATE TRAVEL MANAGEMENT NORTH LTD,1011709059,397.85,BUSINESS TRAVEL WEEK 11,BD1 1PL,PROGRAMME
FOOD STANDARDS AGENCY - Westminster,FOOD STANDARDS AGENCY - Westminster,2019-03-15,EXP - PURCHASE OF GOODS/SERVICES - SUBSISTENCE,Operational Delivery,CORPORATE TRAVEL MANAGEMENT NORTH LTD,1011708911,392.7,TRAVEL EXPENSES  - WEEK 10,BD1 5HQ,PROGRAMME
FOOD STANDARDS AGENCY - Westminster,FOOD STANDARDS AGENCY - Westminster,2019-03-15,EXP - PURCHASE OF GOODS/SERVICES - RAIL TRAVEL,IT Service Delivery,CORPORATE TRAVEL MANAGEMENT NORTH LTD,1011708911,388.6,TRAVEL EXPENSES  - WEEK 10,BD1 5HQ,ADMIN
FOOD STANDARDS AGENCY - Westminster,FOOD STANDARDS AGENCY - Westminster,2019-03-28,EXP - PURCHASE OF GOODS/SERVICES - RAIL TRAVEL,Legal Branch A & Investigations,CORPORATE TRAVEL MANAGEMENT NORTH LTD,1011709059,388,BUSINESS TRAVEL WEEK 11,BD1 1PL,ADMIN
FOOD STANDARDS AGENCY - Westminster,FOOD STANDARDS AGENCY - Westminster,2019-03-15,EXP - PURCHASE OF GOODS/SERVICES - RAIL TRAVEL,Regulatory & International,CORPORATE TRAVEL MANAGEMENT NORTH LTD,1011708911,375.55,TRAVEL EXPENSES  - WEEK 10,BD1 5HQ,ADMIN
FOOD STANDARDS AGENCY - Westminster,FOOD STANDARDS AGENCY - Westminster,2019-03-12,EXP - PURCHASE OF GOODS/SERVICES - OTHER TRAVEL,Corporate Support Unit,CORPORATE TRAVEL MANAGEMENT NORTH LTD,1011709442,370.55,TRAVEL EXPENSES WEEK 9,BD1 5HQ,ADMIN
FOOD STANDARDS AGENCY - Westminster,FOOD STANDARDS AGENCY - Westminster,2019-03-12,EXP - SHORT-TERM CONTRACT & AGENCY STAFF - FULL COST,Digital,ALEXANDER MANN SOLUTIONS LTD-2WM,1011708829,369.56,TEMPORARY STAFF,EC2N 3AQ,ADMIN
FOOD STANDARDS AGENCY - Westminster,FOOD STANDARDS AGENCY - Westminster,2019-03-12,EXP - PURCHASE OF GOODS/SERVICES - OTHER TRAVEL,Digital,CORPORATE TRAVEL MANAGEMENT NORTH LTD,1011709442,368.9,TRAVEL EXPENSES WEEK 9,BD1 5HQ,ADMIN
FOOD STANDARDS AGENCY - Westminster,FOOD STANDARDS AGENCY - Westminster,2019-03-28,EXP - PURCHASE OF GOODS/SERVICES - AIR TRAVEL,Comms Directors Office,CORPORATE TRAVEL MANAGEMENT NORTH LTD,1011709059,367.3,BUSINESS TRAVEL WEEK 11,BD1 1PL,ADMIN
FOOD STANDARDS AGENCY - Westminster,FOOD STANDARDS AGENCY - Westminster,2019-03-12,EXP - PURCHASE OF GOODS/SERVICES - OTHER TRAVEL,East 4,CORPORATE TRAVEL MANAGEMENT NORTH LTD,1011709442,358.15,TRAVEL EXPENSES WEEK 9,BD1 5HQ,PROGRAMME
FOOD STANDARDS AGENCY - Westminster,FOOD STANDARDS AGENCY - Westminster,2019-03-04,EXP - PURCHASE OF GOODS/SERVICES - SUBSISTENCE,Regulating our Future,CORPORATE TRAVEL MANAGEMENT NORTH LTD,1011708715,344.52,TRAVEL WEEK 8 UK,BD1 5HQ,ADMIN
FOOD STANDARDS AGENCY - Westminster,FOOD STANDARDS AGENCY - Westminster,2019-03-04,EXP - PURCHASE OF GOODS/SERVICES - SUBSISTENCE,Planning and Performance,CORPORATE TRAVEL MANAGEMENT NORTH LTD,1011708715,342.9,TRAVEL WEEK 8 UK,BD1 5HQ,ADMIN
FOOD STANDARDS AGENCY - Westminster,FOOD STANDARDS AGENCY - Westminster,2019-03-15,EXP - PURCHASE OF GOODS/SERVICES - RAIL TRAVEL,Internal Audit,CORPORATE TRAVEL MANAGEMENT NORTH LTD,1011708911,342.8,TRAVEL EXPENSES  - WEEK 10,BD1 5HQ,ADMIN
FOOD STANDARDS AGENCY - Westminster,FOOD STANDARDS AGENCY - Westminster,2019-03-04,EXP - PURCHASE OF GOODS/SERVICES - RAIL TRAVEL,Food Crime Unit - Admin,CORPORATE TRAVEL MANAGEMENT NORTH LTD,1011708715,335.45,TRAVEL WEEK 8 UK,BD1 5HQ,ADMIN
FOOD STANDARDS AGENCY - Westminster,FOOD STANDARDS AGENCY - Westminster,2019-03-12,EXP - PURCHASE OF GOODS/SERVICES - OTHER TRAVEL,"Animal Feed, Foodborne Disease and Allergy (AFFDA)",CORPORATE TRAVEL MANAGEMENT NORTH LTD,1011709442,334.65,TRAVEL EXPENSES WEEK 9,BD1 5HQ,ADMIN
FOOD STANDARDS AGENCY - Westminster,FOOD STANDARDS AGENCY - Westminster,2019-03-12,EXP - PURCHASE OF GOODS/SERVICES - OTHER TRAVEL,Regulatory & International,CORPORATE TRAVEL MANAGEMENT NORTH LTD,1011709442,332.03,TRAVEL EXPENSES WEEK 9,BD1 5HQ,ADMIN
FOOD STANDARDS AGENCY - Westminster,FOOD STANDARDS AGENCY - Westminster,2019-03-04,EXP - PURCHASE OF GOODS/SERVICES - RAIL TRAVEL,East 4,CORPORATE TRAVEL MANAGEMENT NORTH LTD,1011708715,327.5,TRAVEL WEEK 8 UK,BD1 5HQ,PROGRAMME
FOOD STANDARDS AGENCY - Westminster,FOOD STANDARDS AGENCY - Westminster,2019-03-04,EXP - PURCHASE OF GOODS/SERVICES - SUBSISTENCE,"Novel Foods, GM, Radiological and Feed Additives",CORPORATE TRAVEL MANAGEMENT NORTH LTD,1011708715,322.4,TRAVEL WEEK 8 UK,BD1 5HQ,ADMIN
FOOD STANDARDS AGENCY - Westminster,FOOD STANDARDS AGENCY - Westminster,2019-03-04,EXP - PURCHASE OF GOODS/SERVICES - AIR TRAVEL,Comms Directors Office,CORPORATE TRAVEL MANAGEMENT NORTH LTD,1011708715,322.07,TRAVEL WEEK 8 UK,BD1 5HQ,ADMIN
FOOD STANDARDS AGENCY - Westminster,FOOD STANDARDS AGENCY - Westminster,2019-03-04,EXP - PURCHASE OF GOODS/SERVICES - RAIL TRAVEL,Food Crime Unit - Prog,CORPORATE TRAVEL MANAGEMENT NORTH LTD,1011708715,320.15,TRAVEL WEEK 8 UK,BD1 5HQ,PROGRAMME
FOOD STANDARDS AGENCY - Westminster,FOOD STANDARDS AGENCY - Westminster,2019-03-12,EXP - PURCHASE OF GOODS/SERVICES - OTHER TRAVEL,"Novel Foods, GM, Radiological and Feed Additives",CORPORATE TRAVEL MANAGEMENT NORTH LTD,1011709442,316.17,TRAVEL EXPENSES WEEK 9,BD1 5HQ,ADMIN
FOOD STANDARDS AGENCY - Westminster,FOOD STANDARDS AGENCY - Westminster,2019-03-04,EXP - PURCHASE OF GOODS/SERVICES - RAIL TRAVEL,Wales and West 3 ,CORPORATE TRAVEL MANAGEMENT NORTH LTD,1011708715,315.75,TRAVEL WEEK 8 UK,BD1 5HQ,PROGRAMME
FOOD STANDARDS AGENCY - Westminster,FOOD STANDARDS AGENCY - Westminster,2019-03-12,EXP - PURCHASE OF GOODS/SERVICES - OTHER TRAVEL,"Meat Hygiene, ABP, TSE",CORPORATE TRAVEL MANAGEMENT NORTH LTD,1011709442,308.3,TRAVEL EXPENSES WEEK 9,BD1 5HQ,ADMIN
FOOD STANDARDS AGENCY - Westminster,FOOD STANDARDS AGENCY - Westminster,2019-03-12,EXP - PURCHASE OF GOODS/SERVICES - OTHER TRAVEL,Chair & Deputy Chair,CORPORATE TRAVEL MANAGEMENT NORTH LTD,1011709442,308.26,TRAVEL EXPENSES WEEK 9,BD1 5HQ,ADMIN
FOOD STANDARDS AGENCY - Westminster,FOOD STANDARDS AGENCY - Westminster,2019-03-12,EXP - PURCHASE OF GOODS/SERVICES - OTHER TRAVEL,Wales and West 4 ,CORPORATE TRAVEL MANAGEMENT NORTH LTD,1011709442,301.75,TRAVEL EXPENSES WEEK 9,BD1 5HQ,PROGRAMME
FOOD STANDARDS AGENCY - Westminster,FOOD STANDARDS AGENCY - Westminster,2019-03-15,EXP - PURCHASE OF GOODS/SERVICES - RAIL TRAVEL,Regulating our Future,CORPORATE TRAVEL MANAGEMENT NORTH LTD,1011708911,291.3,TRAVEL EXPENSES  - WEEK 10,BD1 5HQ,ADMIN
FOOD STANDARDS AGENCY - Westminster,FOOD STANDARDS AGENCY - Westminster,2019-03-28,EXP - PURCHASE OF GOODS/SERVICES - SUBSISTENCE,Digital,CORPORATE TRAVEL MANAGEMENT NORTH LTD,1011709059,288.6,BUSINESS TRAVEL WEEK 11,BD1 1PL,ADMIN
FOOD STANDARDS AGENCY - Westminster,FOOD STANDARDS AGENCY - Westminster,2019-03-04,EXP - PURCHASE OF GOODS/SERVICES - AIR TRAVEL,Organisational Development,CORPORATE TRAVEL MANAGEMENT NORTH LTD,1011708715,288.06,TRAVEL WEEK 8 UK,BD1 5HQ,ADMIN
FOOD STANDARDS AGENCY - Westminster,FOOD STANDARDS AGENCY - Westminster,2019-03-28,EXP - PURCHASE OF GOODS/SERVICES - RAIL TRAVEL,East 4,CORPORATE TRAVEL MANAGEMENT NORTH LTD,1011709059,285.2,BUSINESS TRAVEL WEEK 11,BD1 1PL,PROGRAMME
FOOD STANDARDS AGENCY - Westminster,FOOD STANDARDS AGENCY - Westminster,2019-03-12,EXP - PURCHASE OF GOODS/SERVICES - OTHER TRAVEL,Resilience - Admin,CORPORATE TRAVEL MANAGEMENT NORTH LTD,1011709442,283.4,TRAVEL EXPENSES WEEK 9,BD1 5HQ,ADMIN
FOOD STANDARDS AGENCY - Westminster,FOOD STANDARDS AGENCY - Westminster,2019-03-28,EXP - PURCHASE OF GOODS/SERVICES - RAIL TRAVEL,Chief Scientific Advisors team,CORPORATE TRAVEL MANAGEMENT NORTH LTD,1011709059,282.7,BUSINESS TRAVEL WEEK 11,BD1 1PL,ADMIN
FOOD STANDARDS AGENCY - Westminster,FOOD STANDARDS AGENCY - Westminster,2019-03-12,EXP - PURCHASE OF GOODS/SERVICES - OTHER TRAVEL,Wales and West 2 (Wales),CORPORATE TRAVEL MANAGEMENT NORTH LTD,1011709442,281.4,TRAVEL EXPENSES WEEK 9,BD1 5HQ,PROGRAMME
FOOD STANDARDS AGENCY - Westminster,FOOD STANDARDS AGENCY - Westminster,2019-03-15,EXP - PURCHASE OF GOODS/SERVICES - RAIL TRAVEL,Analytics Unit,CORPORATE TRAVEL MANAGEMENT NORTH LTD,1011708911,281.15,TRAVEL EXPENSES  - WEEK 10,BD1 5HQ,ADMIN
FOOD STANDARDS AGENCY - Westminster,FOOD STANDARDS AGENCY - Westminster,2019-03-04,EXP - PURCHASE OF GOODS/SERVICES - SUBSISTENCE,Incident Handling and Engagement,CORPORATE TRAVEL MANAGEMENT NORTH LTD,1011708715,275.62,TRAVEL WEEK 8 UK,BD1 5HQ,ADMIN
FOOD STANDARDS AGENCY - Westminster,FOOD STANDARDS AGENCY - Westminster,2019-03-04,EXP - PURCHASE OF GOODS/SERVICES - RAIL TRAVEL,Regulatory & International,CORPORATE TRAVEL MANAGEMENT NORTH LTD,1011708715,275.1,TRAVEL WEEK 8 UK,BD1 5HQ,ADMIN
FOOD STANDARDS AGENCY - Westminster,FOOD STANDARDS AGENCY - Westminster,2019-03-04,EXP - PURCHASE OF GOODS/SERVICES - FOREIGN SUBSISTENCE,Chemical Contaminants and Residues,CORPORATE TRAVEL MANAGEMENT NORTH LTD,1011708715,272.88,TRAVEL WEEK 8 UK,BD1 5HQ,ADMIN
FOOD STANDARDS AGENCY - Westminster,FOOD STANDARDS AGENCY - Westminster,2019-03-12,EXP - PURCHASE OF GOODS/SERVICES - OTHER TRAVEL,Wales and West 4 ,CORPORATE TRAVEL MANAGEMENT NORTH LTD,1011709442,272.6,TRAVEL EXPENSES WEEK 9,BD1 5HQ,PROGRAMME
FOOD STANDARDS AGENCY - Westminster,FOOD STANDARDS AGENCY - Westminster,2019-03-04,EXP - PURCHASE OF GOODS/SERVICES - RAIL TRAVEL,East 3,CORPORATE TRAVEL MANAGEMENT NORTH LTD,1011708715,270.05,TRAVEL WEEK 8 UK,BD1 5HQ,PROGRAMME
FOOD STANDARDS AGENCY - Westminster,FOOD STANDARDS AGENCY - Westminster,2019-03-28,EXP - PURCHASE OF GOODS/SERVICES - FOREIGN SUBSISTENCE,Regulatory & International,CORPORATE TRAVEL MANAGEMENT NORTH LTD,1011709059,268.08,BUSINESS TRAVEL WEEK 11,BD1 1PL,ADMIN
FOOD STANDARDS AGENCY - Westminster,FOOD STANDARDS AGENCY - Westminster,2019-03-04,EXP - PURCHASE OF GOODS/SERVICES - FOREIGN SUBSISTENCE,Chief Scientific Advisors team,CORPORATE TRAVEL MANAGEMENT NORTH LTD,1011708715,265.72,TRAVEL WEEK 8 UK,BD1 5HQ,ADMIN
FOOD STANDARDS AGENCY - Westminster,FOOD STANDARDS AGENCY - Westminster,2019-03-15,EXP - PURCHASE OF GOODS/SERVICES - SUBSISTENCE,Wales and West 4 ,CORPORATE TRAVEL MANAGEMENT NORTH LTD,1011708911,265.15,TRAVEL EXPENSES  - WEEK 10,BD1 5HQ,PROGRAMME
FOOD STANDARDS AGENCY - Westminster,FOOD STANDARDS AGENCY - Westminster,2019-03-15,EXP - PURCHASE OF GOODS/SERVICES - RAIL TRAVEL,Food Crime Unit - Admin,CORPORATE TRAVEL MANAGEMENT NORTH LTD,1011708911,264.3,TRAVEL EXPENSES  - WEEK 10,BD1 5HQ,ADMIN
FOOD STANDARDS AGENCY - Westminster,FOOD STANDARDS AGENCY - Westminster,2019-03-12,EXP - PURCHASE OF GOODS/SERVICES - OTHER TRAVEL,Operations Assurance ,CORPORATE TRAVEL MANAGEMENT NORTH LTD,1011709442,262.6,TRAVEL EXPENSES WEEK 9,BD1 5HQ,PROGRAMME
FOOD STANDARDS AGENCY - Westminster,FOOD STANDARDS AGENCY - Westminster,2019-03-28,EXP - PURCHASE OF GOODS/SERVICES - SUBSISTENCE,Chief Scientific Advisors team,CORPORATE TRAVEL MANAGEMENT NORTH LTD,1011709059,262.2,BUSINESS TRAVEL WEEK 11,BD1 1PL,ADMIN
FOOD STANDARDS AGENCY - Westminster,FOOD STANDARDS AGENCY - Westminster,2019-03-15,EXP - PURCHASE OF GOODS/SERVICES - SUBSISTENCE,Comms Directors Office,CORPORATE TRAVEL MANAGEMENT NORTH LTD,1011708911,260.3,TRAVEL EXPENSES  - WEEK 10,BD1 5HQ,ADMIN
FOOD STANDARDS AGENCY - Westminster,FOOD STANDARDS AGENCY - Westminster,2019-03-04,EXP - PURCHASE OF GOODS/SERVICES - AIR TRAVEL,Food Crime Unit - Admin,CORPORATE TRAVEL MANAGEMENT NORTH LTD,1011708715,253.78,TRAVEL WEEK 8 UK,BD1 5HQ,ADMIN
FOOD STANDARDS AGENCY - Westminster,FOOD STANDARDS AGENCY - Westminster,2019-03-04,EXP - PURCHASE OF GOODS/SERVICES - SUBSISTENCE,Regulatory Delivery,CORPORATE TRAVEL MANAGEMENT NORTH LTD,1011708715,251,TRAVEL WEEK 8 UK,BD1 5HQ,ADMIN
FOOD STANDARDS AGENCY - Westminster,FOOD STANDARDS AGENCY - Westminster,2019-03-28,EXP - PURCHASE OF GOODS/SERVICES - FOREIGN SUBSISTENCE,"Animal Feed, Foodborne Disease and Allergy (AFFDA)",CORPORATE TRAVEL MANAGEMENT NORTH LTD,1011709059,250.52,BUSINESS TRAVEL WEEK 11,BD1 1PL,ADMIN
FOOD STANDARDS AGENCY - Westminster,FOOD STANDARDS AGENCY - Westminster,2019-03-12,EXP - PURCHASE OF GOODS/SERVICES - OTHER TRAVEL,East 3,CORPORATE TRAVEL MANAGEMENT NORTH LTD,1011709442,247.2,TRAVEL EXPENSES WEEK 9,BD1 5HQ,PROGRAMME
FOOD STANDARDS AGENCY - Westminster,FOOD STANDARDS AGENCY - Westminster,2019-03-12,EXP - PURCHASE OF GOODS/SERVICES - OTHER TRAVEL,North 4,CORPORATE TRAVEL MANAGEMENT NORTH LTD,1011709442,246.4,TRAVEL EXPENSES WEEK 9,BD1 5HQ,PROGRAMME
FOOD STANDARDS AGENCY - Westminster,FOOD STANDARDS AGENCY - Westminster,2019-03-12,EXP - PURCHASE OF GOODS/SERVICES - OTHER TRAVEL,Digital,CORPORATE TRAVEL MANAGEMENT NORTH LTD,1011709442,241.46,TRAVEL EXPENSES WEEK 9,BD1 5HQ,ADMIN
FOOD STANDARDS AGENCY - Westminster,FOOD STANDARDS AGENCY - Westminster,2019-03-15,EXP - PURCHASE OF GOODS/SERVICES - AIR TRAVEL,Regulating our Future,CORPORATE TRAVEL MANAGEMENT NORTH LTD,1011708911,241,TRAVEL EXPENSES  - WEEK 10,BD1 5HQ,ADMIN
FOOD STANDARDS AGENCY - Westminster,FOOD STANDARDS AGENCY - Westminster,2019-03-04,EXP - PURCHASE OF GOODS/SERVICES - SUBSISTENCE,Regulatory & International,CORPORATE TRAVEL MANAGEMENT NORTH LTD,1011708715,239.4,TRAVEL WEEK 8 UK,BD1 5HQ,ADMIN
FOOD STANDARDS AGENCY - Westminster,FOOD STANDARDS AGENCY - Westminster,2019-03-12,EXP - PURCHASE OF GOODS/SERVICES - OTHER TRAVEL,"Food Additives, Flavourings, and Food Contact Materials",CORPORATE TRAVEL MANAGEMENT NORTH LTD,1011709442,239,TRAVEL EXPENSES WEEK 9,BD1 5HQ,ADMIN
FOOD STANDARDS AGENCY - Westminster,FOOD STANDARDS AGENCY - Westminster,2019-03-28,EXP - PURCHASE OF GOODS/SERVICES - RAIL TRAVEL,East 1,CORPORATE TRAVEL MANAGEMENT NORTH LTD,1011709059,237.85,BUSINESS TRAVEL WEEK 11,BD1 1PL,PROGRAMME
FOOD STANDARDS AGENCY - Westminster,FOOD STANDARDS AGENCY - Westminster,2019-03-04,EXP - PURCHASE OF GOODS/SERVICES - RAIL TRAVEL,"Novel Foods, GM, Radiological and Feed Additives",CORPORATE TRAVEL MANAGEMENT NORTH LTD,1011708715,236.55,TRAVEL WEEK 8 UK,BD1 5HQ,ADMIN
FOOD STANDARDS AGENCY - Westminster,FOOD STANDARDS AGENCY - Westminster,2019-03-15,EXP - PURCHASE OF GOODS/SERVICES - SUBSISTENCE,Legal Branch A & Investigations,CORPORATE TRAVEL MANAGEMENT NORTH LTD,1011708911,235.95,TRAVEL EXPENSES  - WEEK 10,BD1 5HQ,ADMIN
FOOD STANDARDS AGENCY - Westminster,FOOD STANDARDS AGENCY - Westminster,2019-03-15,EXP - PURCHASE OF GOODS/SERVICES - AIR TRAVEL,Operations Assurance ,CORPORATE TRAVEL MANAGEMENT NORTH LTD,1011708911,235.24,TRAVEL EXPENSES  - WEEK 10,BD1 5HQ,PROGRAMME
FOOD STANDARDS AGENCY - Westminster,FOOD STANDARDS AGENCY - Westminster,2019-03-12,EXP - PURCHASE OF GOODS/SERVICES - OTHER TRAVEL,Wales and West 3 ,CORPORATE TRAVEL MANAGEMENT NORTH LTD,1011709442,232.4,TRAVEL EXPENSES WEEK 9,BD1 5HQ,PROGRAMME
FOOD STANDARDS AGENCY - Westminster,FOOD STANDARDS AGENCY - Westminster,2019-03-15,EXP - PURCHASE OF GOODS/SERVICES -  FOREIGN AIR TRAVEL,Regulatory & International,CORPORATE TRAVEL MANAGEMENT NORTH LTD,1011708911,232.16,TRAVEL EXPENSES  - WEEK 10,BD1 5HQ,ADMIN
FOOD STANDARDS AGENCY - Westminster,FOOD STANDARDS AGENCY - Westminster,2019-03-28,EXP - PURCHASE OF GOODS/SERVICES -  FOREIGN AIR TRAVEL,Risk Assessment - operations,CORPORATE TRAVEL MANAGEMENT NORTH LTD,1011709059,227.39,BUSINESS TRAVEL WEEK 11,BD1 1PL,ADMIN
FOOD STANDARDS AGENCY - Westminster,FOOD STANDARDS AGENCY - Westminster,2019-03-28,EXP - PURCHASE OF GOODS/SERVICES - RAIL TRAVEL,Wales and West 1 (England),CORPORATE TRAVEL MANAGEMENT NORTH LTD,1011709059,225.7,BUSINESS TRAVEL WEEK 11,BD1 1PL,PROGRAMME
FOOD STANDARDS AGENCY - Westminster,FOOD STANDARDS AGENCY - Westminster,2019-03-15,EXP - PURCHASE OF GOODS/SERVICES - AIR TRAVEL,Internal Audit,CORPORATE TRAVEL MANAGEMENT NORTH LTD,1011708911,225.06,TRAVEL EXPENSES  - WEEK 10,BD1 5HQ,ADMIN
FOOD STANDARDS AGENCY - Westminster,FOOD STANDARDS AGENCY - Westminster,2019-03-28,EXP - PURCHASE OF GOODS/SERVICES - SUBSISTENCE,Resilience - Admin,CORPORATE TRAVEL MANAGEMENT NORTH LTD,1011709059,224.84,BUSINESS TRAVEL WEEK 11,BD1 1PL,ADMIN
FOOD STANDARDS AGENCY - Westminster,FOOD STANDARDS AGENCY - Westminster,2019-03-28,EXP - PURCHASE OF GOODS/SERVICES - FOREIGN SUBSISTENCE,Scientific Methods & Laboratory Policy,CORPORATE TRAVEL MANAGEMENT NORTH LTD,1011709059,222.24,BUSINESS TRAVEL WEEK 11,BD1 1PL,ADMIN
FOOD STANDARDS AGENCY - Westminster,FOOD STANDARDS AGENCY - Westminster,2019-03-12,EXP - PURCHASE OF GOODS/SERVICES - OTHER TRAVEL,"Novel Foods, GM, Radiological and Feed Additives",CORPORATE TRAVEL MANAGEMENT NORTH LTD,1011709442,218.51,TRAVEL EXPENSES WEEK 9,BD1 5HQ,ADMIN
FOOD STANDARDS AGENCY - Westminster,FOOD STANDARDS AGENCY - Westminster,2019-03-12,EXP - PURCHASE OF GOODS/SERVICES - OTHER TRAVEL,Risk Assessment ? research and development,CORPORATE TRAVEL MANAGEMENT NORTH LTD,1011709442,216.6,TRAVEL EXPENSES WEEK 9,BD1 5HQ,ADMIN
FOOD STANDARDS AGENCY - Westminster,FOOD STANDARDS AGENCY - Westminster,2019-03-12,EXP - PURCHASE OF GOODS/SERVICES - OTHER TRAVEL,Finance Director & Branch,CORPORATE TRAVEL MANAGEMENT NORTH LTD,1011709442,208.6,TRAVEL EXPENSES WEEK 9,BD1 5HQ,ADMIN
FOOD STANDARDS AGENCY - Westminster,FOOD STANDARDS AGENCY - Westminster,2019-03-15,EXP - PURCHASE OF GOODS/SERVICES - FOREIGN SUBSISTENCE,"Meat Hygiene, ABP, TSE",CORPORATE TRAVEL MANAGEMENT NORTH LTD,1011708911,208.58,TRAVEL EXPENSES  - WEEK 10,BD1 5HQ,ADMIN
FOOD STANDARDS AGENCY - Westminster,FOOD STANDARDS AGENCY - Westminster,2019-03-04,EXP - PURCHASE OF GOODS/SERVICES - RAIL TRAVEL,Legal Branch A & Investigations,CORPORATE TRAVEL MANAGEMENT NORTH LTD,1011708715,207.85,TRAVEL WEEK 8 UK,BD1 5HQ,ADMIN
FOOD STANDARDS AGENCY - Westminster,FOOD STANDARDS AGENCY - Westminster,2019-03-12,EXP - PURCHASE OF GOODS/SERVICES - OTHER TRAVEL,Regulatory Delivery,CORPORATE TRAVEL MANAGEMENT NORTH LTD,1011709442,206.4,TRAVEL EXPENSES WEEK 9,BD1 5HQ,ADMIN
FOOD STANDARDS AGENCY - Westminster,FOOD STANDARDS AGENCY - Westminster,2019-03-04,EXP - PURCHASE OF GOODS/SERVICES - SUBSISTENCE,Food Crime Unit - Prog,CORPORATE TRAVEL MANAGEMENT NORTH LTD,1011708715,205.4,TRAVEL WEEK 8 UK,BD1 5HQ,PROGRAMME
FOOD STANDARDS AGENCY - Westminster,FOOD STANDARDS AGENCY - Westminster,2019-03-15,EXP - PURCHASE OF GOODS/SERVICES - SUBSISTENCE,Chief Executive & Private Office,CORPORATE TRAVEL MANAGEMENT NORTH LTD,1011708911,204.6,TRAVEL EXPENSES  - WEEK 10,BD1 5HQ,ADMIN
FOOD STANDARDS AGENCY - Westminster,FOOD STANDARDS AGENCY - Westminster,2019-03-04,EXP - PURCHASE OF GOODS/SERVICES - RAIL TRAVEL,Operations Assurance ,CORPORATE TRAVEL MANAGEMENT NORTH LTD,1011708715,202.15,TRAVEL WEEK 8 UK,BD1 5HQ,PROGRAMME
FOOD STANDARDS AGENCY - Westminster,FOOD STANDARDS AGENCY - Westminster,2019-03-28,EXP - PURCHASE OF GOODS/SERVICES -  FOREIGN AIR TRAVEL,Legal Branch A & Investigations,CORPORATE TRAVEL MANAGEMENT NORTH LTD,1011709059,201.16,BUSINESS TRAVEL WEEK 11,BD1 1PL,ADMIN
FOOD STANDARDS AGENCY - Westminster,FOOD STANDARDS AGENCY - Westminster,2019-03-04,EXP - PURCHASE OF GOODS/SERVICES - AIR TRAVEL,Regulatory & International,CORPORATE TRAVEL MANAGEMENT NORTH LTD,1011708715,199,TRAVEL WEEK 8 UK,BD1 5HQ,ADMIN
FOOD STANDARDS AGENCY - Westminster,FOOD STANDARDS AGENCY - Westminster,2019-03-12,EXP - PURCHASE OF GOODS/SERVICES - OTHER TRAVEL,"Novel Foods, GM, Radiological and Feed Additives",CORPORATE TRAVEL MANAGEMENT NORTH LTD,1011709442,199,TRAVEL EXPENSES WEEK 9,BD1 5HQ,ADMIN
FOOD STANDARDS AGENCY - Westminster,FOOD STANDARDS AGENCY - Westminster,2019-03-04,EXP - PURCHASE OF GOODS/SERVICES -  FOREIGN AIR TRAVEL,"Novel Foods, GM, Radiological and Feed Additives",CORPORATE TRAVEL MANAGEMENT NORTH LTD,1011708715,198,TRAVEL WEEK 8 UK,BD1 5HQ,ADMIN
FOOD STANDARDS AGENCY - Westminster,FOOD STANDARDS AGENCY - Westminster,2019-03-28,EXP - PURCHASE OF GOODS/SERVICES - SUBSISTENCE,Chemical Contaminants and Residues,CORPORATE TRAVEL MANAGEMENT NORTH LTD,1011709059,194.96,BUSINESS TRAVEL WEEK 11,BD1 1PL,ADMIN
FOOD STANDARDS AGENCY - Westminster,FOOD STANDARDS AGENCY - Westminster,2019-03-12,EXP - PURCHASE OF GOODS/SERVICES - OTHER TRAVEL,East 1,CORPORATE TRAVEL MANAGEMENT NORTH LTD,1011709442,194.85,TRAVEL EXPENSES WEEK 9,BD1 5HQ,PROGRAMME
FOOD STANDARDS AGENCY - Westminster,FOOD STANDARDS AGENCY - Westminster,2019-03-12,EXP - PURCHASE OF GOODS/SERVICES - OTHER TRAVEL,"Meat Hygiene, ABP, TSE",CORPORATE TRAVEL MANAGEMENT NORTH LTD,1011709442,194,TRAVEL EXPENSES WEEK 9,BD1 5HQ,ADMIN
FOOD STANDARDS AGENCY - Westminster,FOOD STANDARDS AGENCY - Westminster,2019-03-28,EXP - PURCHASE OF GOODS/SERVICES - SUBSISTENCE,Chief Executive & Private Office,CORPORATE TRAVEL MANAGEMENT NORTH LTD,1011709059,193.6,BUSINESS TRAVEL WEEK 11,BD1 1PL,ADMIN
FOOD STANDARDS AGENCY - Westminster,FOOD STANDARDS AGENCY - Westminster,2019-03-28,EXP - PURCHASE OF GOODS/SERVICES - SUBSISTENCE,IT Service Delivery,CORPORATE TRAVEL MANAGEMENT NORTH LTD,1011709059,192.6,BUSINESS TRAVEL WEEK 11,BD1 1PL,ADMIN
FOOD STANDARDS AGENCY - Westminster,FOOD STANDARDS AGENCY - Westminster,2019-03-04,EXP - PURCHASE OF GOODS/SERVICES - AIR TRAVEL,General Food Hygiene,CORPORATE TRAVEL MANAGEMENT NORTH LTD,1011708715,191.39,TRAVEL WEEK 8 UK,BD1 5HQ,ADMIN
FOOD STANDARDS AGENCY - Westminster,FOOD STANDARDS AGENCY - Westminster,2019-03-12,EXP - PURCHASE OF GOODS/SERVICES - OTHER TRAVEL,Scientific Methods & Laboratory Policy,CORPORATE TRAVEL MANAGEMENT NORTH LTD,1011709442,188.69,TRAVEL EXPENSES WEEK 9,BD1 5HQ,ADMIN
FOOD STANDARDS AGENCY - Westminster,FOOD STANDARDS AGENCY - Westminster,2019-03-15,EXP - PURCHASE OF GOODS/SERVICES - RAIL TRAVEL,General Food Hygiene,CORPORATE TRAVEL MANAGEMENT NORTH LTD,1011708911,186.1,TRAVEL EXPENSES  - WEEK 10,BD1 5HQ,ADMIN
FOOD STANDARDS AGENCY - Westminster,FOOD STANDARDS AGENCY - Westminster,2019-03-28,EXP - PURCHASE OF GOODS/SERVICES - SUBSISTENCE,East 1,CORPORATE TRAVEL MANAGEMENT NORTH LTD,1011709059,185.2,BUSINESS TRAVEL WEEK 11,BD1 1PL,PROGRAMME
FOOD STANDARDS AGENCY - Westminster,FOOD STANDARDS AGENCY - Westminster,2019-03-15,EXP - PURCHASE OF GOODS/SERVICES - RAIL TRAVEL,North 1,CORPORATE TRAVEL MANAGEMENT NORTH LTD,1011708911,184.25,TRAVEL EXPENSES  - WEEK 10,BD1 5HQ,PROGRAMME
FOOD STANDARDS AGENCY - Westminster,FOOD STANDARDS AGENCY - Westminster,2019-03-04,EXP - PURCHASE OF GOODS/SERVICES - RAIL TRAVEL,"Animal Feed, Foodborne Disease and Allergy (AFFDA)",CORPORATE TRAVEL MANAGEMENT NORTH LTD,1011708715,184,TRAVEL WEEK 8 UK,BD1 5HQ,ADMIN
FOOD STANDARDS AGENCY - Westminster,FOOD STANDARDS AGENCY - Westminster,2019-03-28,EXP - PURCHASE OF GOODS/SERVICES - SUBSISTENCE,Wales and West 4 ,CORPORATE TRAVEL MANAGEMENT NORTH LTD,1011709059,182.6,BUSINESS TRAVEL WEEK 11,BD1 1PL,PROGRAMME
FOOD STANDARDS AGENCY - Westminster,FOOD STANDARDS AGENCY - Westminster,2019-03-28,EXP - PURCHASE OF GOODS/SERVICES - SUBSISTENCE,East 2,CORPORATE TRAVEL MANAGEMENT NORTH LTD,1011709059,181.6,BUSINESS TRAVEL WEEK 11,BD1 1PL,PROGRAMME
FOOD STANDARDS AGENCY - Westminster,FOOD STANDARDS AGENCY - Westminster,2019-03-15,EXP - PURCHASE OF GOODS/SERVICES - AIR TRAVEL,Digital,CORPORATE TRAVEL MANAGEMENT NORTH LTD,1011708911,180.21,TRAVEL EXPENSES  - WEEK 10,BD1 5HQ,ADMIN
FOOD STANDARDS AGENCY - Westminster,FOOD STANDARDS AGENCY - Westminster,2019-03-12,EXP - PURCHASE OF GOODS/SERVICES - OTHER TRAVEL,Risk Assessment ? research and development,CORPORATE TRAVEL MANAGEMENT NORTH LTD,1011709442,180.16,TRAVEL EXPENSES WEEK 9,BD1 5HQ,ADMIN
FOOD STANDARDS AGENCY - Westminster,FOOD STANDARDS AGENCY - Westminster,2019-03-28,EXP - PURCHASE OF GOODS/SERVICES - RAIL TRAVEL,Food Incidents & Resilience - Prog,CORPORATE TRAVEL MANAGEMENT NORTH LTD,1011709059,176.65,BUSINESS TRAVEL WEEK 11,BD1 1PL,PROGRAMME
FOOD STANDARDS AGENCY - Westminster,FOOD STANDARDS AGENCY - Westminster,2019-03-28,EXP - PURCHASE OF GOODS/SERVICES - SUBSISTENCE,Finance Director & Branch,CORPORATE TRAVEL MANAGEMENT NORTH LTD,1011709059,170.6,BUSINESS TRAVEL WEEK 11,BD1 1PL,ADMIN
FOOD STANDARDS AGENCY - Westminster,FOOD STANDARDS AGENCY - Westminster,2019-03-15,EXP - PURCHASE OF GOODS/SERVICES - SUBSISTENCE,"Novel Foods, GM, Radiological and Feed Additives",CORPORATE TRAVEL MANAGEMENT NORTH LTD,1011708911,170.53,TRAVEL EXPENSES  - WEEK 10,BD1 5HQ,ADMIN
FOOD STANDARDS AGENCY - Westminster,FOOD STANDARDS AGENCY - Westminster,2019-03-15,EXP - PURCHASE OF GOODS/SERVICES - RAIL TRAVEL,North 4,CORPORATE TRAVEL MANAGEMENT NORTH LTD,1011708911,169.7,TRAVEL EXPENSES  - WEEK 10,BD1 5HQ,PROGRAMME
FOOD STANDARDS AGENCY - Westminster,FOOD STANDARDS AGENCY - Westminster,2019-03-15,EXP - PURCHASE OF GOODS/SERVICES - RAIL TRAVEL,"Novel Foods, GM, Radiological and Feed Additives",CORPORATE TRAVEL MANAGEMENT NORTH LTD,1011708911,169,TRAVEL EXPENSES  - WEEK 10,BD1 5HQ,ADMIN
FOOD STANDARDS AGENCY - Westminster,FOOD STANDARDS AGENCY - Westminster,2019-03-12,EXP - PURCHASE OF GOODS/SERVICES - OTHER TRAVEL,Comms Directors Office,CORPORATE TRAVEL MANAGEMENT NORTH LTD,1011709442,168.41,TRAVEL EXPENSES WEEK 9,BD1 5HQ,ADMIN
FOOD STANDARDS AGENCY - Westminster,FOOD STANDARDS AGENCY - Westminster,2019-03-15,EXP - PURCHASE OF GOODS/SERVICES - RAIL TRAVEL,Wales and West 2 (Wales),CORPORATE TRAVEL MANAGEMENT NORTH LTD,1011708911,168.4,TRAVEL EXPENSES  - WEEK 10,BD1 5HQ,PROGRAMME
FOOD STANDARDS AGENCY - Westminster,FOOD STANDARDS AGENCY - Westminster,2019-03-28,EXP - PURCHASE OF GOODS/SERVICES - SUBSISTENCE,North 4,CORPORATE TRAVEL MANAGEMENT NORTH LTD,1011709059,168.3,BUSINESS TRAVEL WEEK 11,BD1 1PL,PROGRAMME
FOOD STANDARDS AGENCY - Westminster,FOOD STANDARDS AGENCY - Westminster,2019-03-12,EXP - PURCHASE OF GOODS/SERVICES - OTHER TRAVEL,Procurement,CORPORATE TRAVEL MANAGEMENT NORTH LTD,1011709442,167.9,TRAVEL EXPENSES WEEK 9,BD1 5HQ,ADMIN
FOOD STANDARDS AGENCY - Westminster,FOOD STANDARDS AGENCY - Westminster,2019-03-15,EXP - PURCHASE OF GOODS/SERVICES - SUBSISTENCE,East 4,CORPORATE TRAVEL MANAGEMENT NORTH LTD,1011708911,167.1,TRAVEL EXPENSES  - WEEK 10,BD1 5HQ,PROGRAMME
FOOD STANDARDS AGENCY - Westminster,FOOD STANDARDS AGENCY - Westminster,2019-03-12,EXP - PURCHASE OF GOODS/SERVICES - OTHER TRAVEL,East 4,CORPORATE TRAVEL MANAGEMENT NORTH LTD,1011709442,165.2,TRAVEL EXPENSES WEEK 9,BD1 5HQ,PROGRAMME
FOOD STANDARDS AGENCY - Westminster,FOOD STANDARDS AGENCY - Westminster,2019-03-28,EXP - PURCHASE OF GOODS/SERVICES - RAIL TRAVEL,Allergens,CORPORATE TRAVEL MANAGEMENT NORTH LTD,1011709059,163.65,BUSINESS TRAVEL WEEK 11,BD1 1PL,ADMIN
FOOD STANDARDS AGENCY - Westminster,FOOD STANDARDS AGENCY - Westminster,2019-03-12,EXP - PURCHASE OF GOODS/SERVICES - OTHER TRAVEL,Wales and West 1 (England),CORPORATE TRAVEL MANAGEMENT NORTH LTD,1011709442,162.85,TRAVEL EXPENSES WEEK 9,BD1 5HQ,PROGRAMME
FOOD STANDARDS AGENCY - Westminster,FOOD STANDARDS AGENCY - Westminster,2019-03-04,EXP - PURCHASE OF GOODS/SERVICES - AIR TRAVEL,NFCU Phase 2,CORPORATE TRAVEL MANAGEMENT NORTH LTD,1011708715,161.44,TRAVEL WEEK 8 UK,BD1 5HQ,PROGRAMME
FOOD STANDARDS AGENCY - Westminster,FOOD STANDARDS AGENCY - Westminster,2019-03-15,EXP - PURCHASE OF GOODS/SERVICES - SUBSISTENCE,North 1,CORPORATE TRAVEL MANAGEMENT NORTH LTD,1011708911,159.8,TRAVEL EXPENSES  - WEEK 10,BD1 5HQ,PROGRAMME
FOOD STANDARDS AGENCY - Westminster,FOOD STANDARDS AGENCY - Westminster,2019-03-04,EXP - PURCHASE OF GOODS/SERVICES - RAIL TRAVEL,Non Meat Field Ops,CORPORATE TRAVEL MANAGEMENT NORTH LTD,1011708715,159,TRAVEL WEEK 8 UK,BD1 5HQ,PROGRAMME
FOOD STANDARDS AGENCY - Westminster,FOOD STANDARDS AGENCY - Westminster,2019-03-12,EXP - PURCHASE OF GOODS/SERVICES - OTHER TRAVEL,Food Crime Unit - Prog,CORPORATE TRAVEL MANAGEMENT NORTH LTD,1011709442,157.05,TRAVEL EXPENSES WEEK 9,BD1 5HQ,PROGRAMME
FOOD STANDARDS AGENCY - Westminster,FOOD STANDARDS AGENCY - Westminster,2019-03-12,EXP - PURCHASE OF GOODS/SERVICES - OTHER TRAVEL,Chief Executive & Private Office,CORPORATE TRAVEL MANAGEMENT NORTH LTD,1011709442,156.6,TRAVEL EXPENSES WEEK 9,BD1 5HQ,ADMIN
FOOD STANDARDS AGENCY - Westminster,FOOD STANDARDS AGENCY - Westminster,2019-03-12,EXP - PURCHASE OF GOODS/SERVICES - OTHER TRAVEL,North 1,CORPORATE TRAVEL MANAGEMENT NORTH LTD,1011709442,156.4,TRAVEL EXPENSES WEEK 9,BD1 5HQ,PROGRAMME
FOOD STANDARDS AGENCY - Westminster,FOOD STANDARDS AGENCY - Westminster,2019-03-15,EXP - PURCHASE OF GOODS/SERVICES - RAIL TRAVEL,"Meat Hygiene, ABP, TSE",CORPORATE TRAVEL MANAGEMENT NORTH LTD,1011708911,155.1,TRAVEL EXPENSES  - WEEK 10,BD1 5HQ,ADMIN
FOOD STANDARDS AGENCY - Westminster,FOOD STANDARDS AGENCY - Westminster,2019-03-04,EXP - PURCHASE OF GOODS/SERVICES - RAIL TRAVEL,Programme and project delivery,CORPORATE TRAVEL MANAGEMENT NORTH LTD,1011708715,153.5,TRAVEL WEEK 8 UK,BD1 5HQ,ADMIN
FOOD STANDARDS AGENCY - Westminster,FOOD STANDARDS AGENCY - Westminster,2019-03-15,EXP - PURCHASE OF GOODS/SERVICES - SUBSISTENCE,Food Crime Unit - Prog,CORPORATE TRAVEL MANAGEMENT NORTH LTD,1011708911,150.6,TRAVEL EXPENSES  - WEEK 10,BD1 5HQ,PROGRAMME
FOOD STANDARDS AGENCY - Westminster,FOOD STANDARDS AGENCY - Westminster,2019-03-04,EXP - PURCHASE OF GOODS/SERVICES -  FOREIGN AIR TRAVEL,Organisational Development,CORPORATE TRAVEL MANAGEMENT NORTH LTD,1011708715,148.49,TRAVEL WEEK 8 UK,BD1 5HQ,ADMIN
FOOD STANDARDS AGENCY - Westminster,FOOD STANDARDS AGENCY - Westminster,2019-03-04,EXP - PURCHASE OF GOODS/SERVICES - FOREIGN SUBSISTENCE,"Food Additives, Flavourings, and Food Contact Materials",CORPORATE TRAVEL MANAGEMENT NORTH LTD,1011708715,147.69,TRAVEL WEEK 8 UK,BD1 5HQ,ADMIN
FOOD STANDARDS AGENCY - Westminster,FOOD STANDARDS AGENCY - Westminster,2019-03-04,EXP - PURCHASE OF GOODS/SERVICES - FOREIGN SUBSISTENCE,"Meat Hygiene, ABP, TSE",CORPORATE TRAVEL MANAGEMENT NORTH LTD,1011708715,147.69,TRAVEL WEEK 8 UK,BD1 5HQ,ADMIN
FOOD STANDARDS AGENCY - Westminster,FOOD STANDARDS AGENCY - Westminster,2019-03-12,EXP - PURCHASE OF GOODS/SERVICES - OTHER TRAVEL,IT Service Delivery,CORPORATE TRAVEL MANAGEMENT NORTH LTD,1011709442,146.1,TRAVEL EXPENSES WEEK 9,BD1 5HQ,ADMIN
FOOD STANDARDS AGENCY - Westminster,FOOD STANDARDS AGENCY - Westminster,2019-03-12,EXP - PURCHASE OF GOODS/SERVICES - OTHER TRAVEL,General Food Hygiene,CORPORATE TRAVEL MANAGEMENT NORTH LTD,1011709442,146.02,TRAVEL EXPENSES WEEK 9,BD1 5HQ,ADMIN
FOOD STANDARDS AGENCY - Westminster,FOOD STANDARDS AGENCY - Westminster,2019-03-15,EXP - PURCHASE OF GOODS/SERVICES - SUBSISTENCE,Corporate Support Unit,CORPORATE TRAVEL MANAGEMENT NORTH LTD,1011708911,144.05,TRAVEL EXPENSES  - WEEK 10,BD1 5HQ,ADMIN
FOOD STANDARDS AGENCY - Westminster,FOOD STANDARDS AGENCY - Westminster,2019-03-28,EXP - PURCHASE OF GOODS/SERVICES - FOREIGN SUBSISTENCE,NFCU Phase 2,CORPORATE TRAVEL MANAGEMENT NORTH LTD,1011709059,141.79,BUSINESS TRAVEL WEEK 11,BD1 1PL,PROGRAMME
FOOD STANDARDS AGENCY - Westminster,FOOD STANDARDS AGENCY - Westminster,2019-03-12,EXP - PURCHASE OF GOODS/SERVICES - OTHER TRAVEL,IT Service Delivery,CORPORATE TRAVEL MANAGEMENT NORTH LTD,1011709442,141.3,TRAVEL EXPENSES WEEK 9,BD1 5HQ,ADMIN
FOOD STANDARDS AGENCY - Westminster,FOOD STANDARDS AGENCY - Westminster,2019-03-12,EXP - PURCHASE OF GOODS/SERVICES - OTHER TRAVEL,Analytics Unit,CORPORATE TRAVEL MANAGEMENT NORTH LTD,1011709442,141.25,TRAVEL EXPENSES WEEK 9,BD1 5HQ,ADMIN
FOOD STANDARDS AGENCY - Westminster,FOOD STANDARDS AGENCY - Westminster,2019-03-15,EXP - PURCHASE OF GOODS/SERVICES - SUBSISTENCE,"Food Additives, Flavourings, and Food Contact Materials",CORPORATE TRAVEL MANAGEMENT NORTH LTD,1011708911,140.96,TRAVEL EXPENSES  - WEEK 10,BD1 5HQ,ADMIN
FOOD STANDARDS AGENCY - Westminster,FOOD STANDARDS AGENCY - Westminster,2019-03-12,EXP - PURCHASE OF GOODS/SERVICES - OTHER TRAVEL,Internal Audit,CORPORATE TRAVEL MANAGEMENT NORTH LTD,1011709442,139.2,TRAVEL EXPENSES WEEK 9,BD1 5HQ,ADMIN
FOOD STANDARDS AGENCY - Westminster,FOOD STANDARDS AGENCY - Westminster,2019-03-12,EXP - PURCHASE OF GOODS/SERVICES - OTHER TRAVEL,Organisational Development,CORPORATE TRAVEL MANAGEMENT NORTH LTD,1011709442,139.12,TRAVEL EXPENSES WEEK 9,BD1 5HQ,ADMIN
FOOD STANDARDS AGENCY - Westminster,FOOD STANDARDS AGENCY - Westminster,2019-03-15,EXP - PURCHASE OF GOODS/SERVICES - RAIL TRAVEL,Resilience - Admin,CORPORATE TRAVEL MANAGEMENT NORTH LTD,1011708911,138.9,TRAVEL EXPENSES  - WEEK 10,BD1 5HQ,ADMIN
FOOD STANDARDS AGENCY - Westminster,FOOD STANDARDS AGENCY - Westminster,2019-03-28,EXP - PURCHASE OF GOODS/SERVICES - RAIL TRAVEL,Wales and West 2 (Wales),CORPORATE TRAVEL MANAGEMENT NORTH LTD,1011709059,137.2,BUSINESS TRAVEL WEEK 11,BD1 1PL,PROGRAMME
FOOD STANDARDS AGENCY - Westminster,FOOD STANDARDS AGENCY - Westminster,2019-03-28,EXP - PURCHASE OF GOODS/SERVICES - SUBSISTENCE,"Food Additives, Flavourings, and Food Contact Materials",CORPORATE TRAVEL MANAGEMENT NORTH LTD,1011709059,136.09,BUSINESS TRAVEL WEEK 11,BD1 1PL,ADMIN
FOOD STANDARDS AGENCY - Westminster,FOOD STANDARDS AGENCY - Westminster,2019-03-12,EXP - PURCHASE OF GOODS/SERVICES - OTHER TRAVEL,Allergens,CORPORATE TRAVEL MANAGEMENT NORTH LTD,1011709442,135.65,TRAVEL EXPENSES WEEK 9,BD1 5HQ,ADMIN
FOOD STANDARDS AGENCY - Westminster,FOOD STANDARDS AGENCY - Westminster,2019-03-28,EXP - PURCHASE OF GOODS/SERVICES - AIR TRAVEL,Legal Branch A & Investigations,CORPORATE TRAVEL MANAGEMENT NORTH LTD,1011709059,135.54,BUSINESS TRAVEL WEEK 11,BD1 1PL,ADMIN
FOOD STANDARDS AGENCY - Westminster,FOOD STANDARDS AGENCY - Westminster,2019-03-28,EXP - PURCHASE OF GOODS/SERVICES - FOREIGN SUBSISTENCE,Internal Audit,CORPORATE TRAVEL MANAGEMENT NORTH LTD,1011709059,135.42,BUSINESS TRAVEL WEEK 11,BD1 1PL,ADMIN
FOOD STANDARDS AGENCY - Westminster,FOOD STANDARDS AGENCY - Westminster,2019-03-04,EXP - PURCHASE OF GOODS/SERVICES - FOREIGN SUBSISTENCE,Food Crime Unit - Admin,CORPORATE TRAVEL MANAGEMENT NORTH LTD,1011708715,134.53,TRAVEL WEEK 8 UK,BD1 5HQ,ADMIN
FOOD STANDARDS AGENCY - Westminster,FOOD STANDARDS AGENCY - Westminster,2019-03-04,EXP - PURCHASE OF GOODS/SERVICES - RAIL TRAVEL,Wales and West 1 (England),CORPORATE TRAVEL MANAGEMENT NORTH LTD,1011708715,134.35,TRAVEL WEEK 8 UK,BD1 5HQ,PROGRAMME
FOOD STANDARDS AGENCY - Westminster,FOOD STANDARDS AGENCY - Westminster,2019-03-28,EXP - PURCHASE OF GOODS/SERVICES - FOREIGN SUBSISTENCE,Imports & Exports Team (Admin),CORPORATE TRAVEL MANAGEMENT NORTH LTD,1011709059,133.4,BUSINESS TRAVEL WEEK 11,BD1 1PL,ADMIN
FOOD STANDARDS AGENCY - Westminster,FOOD STANDARDS AGENCY - Westminster,2019-03-04,EXP - PURCHASE OF GOODS/SERVICES - RAIL TRAVEL,Procurement,CORPORATE TRAVEL MANAGEMENT NORTH LTD,1011708715,132.5,TRAVEL WEEK 8 UK,BD1 5HQ,ADMIN
FOOD STANDARDS AGENCY - Westminster,FOOD STANDARDS AGENCY - Westminster,2019-03-28,EXP - PURCHASE OF GOODS/SERVICES - OTHER TRAVEL,Regulating our Future,CORPORATE TRAVEL MANAGEMENT NORTH LTD,1011709059,132.41,BUSINESS TRAVEL WEEK 11,BD1 1PL,ADMIN
FOOD STANDARDS AGENCY - Westminster,FOOD STANDARDS AGENCY - Westminster,2019-03-15,EXP - PURCHASE OF GOODS/SERVICES - SUBSISTENCE,Internal Audit,CORPORATE TRAVEL MANAGEMENT NORTH LTD,1011708911,130.3,TRAVEL EXPENSES  - WEEK 10,BD1 5HQ,ADMIN
FOOD STANDARDS AGENCY - Westminster,FOOD STANDARDS AGENCY - Westminster,2019-03-28,EXP - PURCHASE OF GOODS/SERVICES -  FOREIGN AIR TRAVEL,Regulatory & International,CORPORATE TRAVEL MANAGEMENT NORTH LTD,1011709059,129.78,BUSINESS TRAVEL WEEK 11,BD1 1PL,ADMIN
FOOD STANDARDS AGENCY - Westminster,FOOD STANDARDS AGENCY - Westminster,2019-03-04,EXP - PURCHASE OF GOODS/SERVICES - SUBSISTENCE,Chief Executive & Private Office,CORPORATE TRAVEL MANAGEMENT NORTH LTD,1011708715,129.6,TRAVEL WEEK 8 UK,BD1 5HQ,ADMIN
FOOD STANDARDS AGENCY - Westminster,FOOD STANDARDS AGENCY - Westminster,2019-03-28,EXP - PURCHASE OF GOODS/SERVICES - FOREIGN SUBSISTENCE,Food Crime Unit - Admin,CORPORATE TRAVEL MANAGEMENT NORTH LTD,1011709059,128,BUSINESS TRAVEL WEEK 11,BD1 1PL,ADMIN
FOOD STANDARDS AGENCY - Westminster,FOOD STANDARDS AGENCY - Westminster,2019-03-15,EXP - PURCHASE OF GOODS/SERVICES - RAIL TRAVEL,East 3,CORPORATE TRAVEL MANAGEMENT NORTH LTD,1011708911,127.3,TRAVEL EXPENSES  - WEEK 10,BD1 5HQ,PROGRAMME
FOOD STANDARDS AGENCY - Westminster,FOOD STANDARDS AGENCY - Westminster,2019-03-15,EXP - PURCHASE OF GOODS/SERVICES - SUBSISTENCE,Finance Director & Branch,CORPORATE TRAVEL MANAGEMENT NORTH LTD,1011708911,126.9,TRAVEL EXPENSES  - WEEK 10,BD1 5HQ,ADMIN
FOOD STANDARDS AGENCY - Westminster,FOOD STANDARDS AGENCY - Westminster,2019-03-28,EXP - PURCHASE OF GOODS/SERVICES - RAIL TRAVEL,East 3,CORPORATE TRAVEL MANAGEMENT NORTH LTD,1011709059,125.75,BUSINESS TRAVEL WEEK 11,BD1 1PL,PROGRAMME
FOOD STANDARDS AGENCY - Westminster,FOOD STANDARDS AGENCY - Westminster,2019-03-28,EXP - PURCHASE OF GOODS/SERVICES - SUBSISTENCE,East 4,CORPORATE TRAVEL MANAGEMENT NORTH LTD,1011709059,125.65,BUSINESS TRAVEL WEEK 11,BD1 1PL,PROGRAMME
FOOD STANDARDS AGENCY - Westminster,FOOD STANDARDS AGENCY - Westminster,2019-03-28,EXP - PURCHASE OF GOODS/SERVICES - FOREIGN SUBSISTENCE,General Food Hygiene,CORPORATE TRAVEL MANAGEMENT NORTH LTD,1011709059,125.01,BUSINESS TRAVEL WEEK 11,BD1 1PL,ADMIN
FOOD STANDARDS AGENCY - Westminster,FOOD STANDARDS AGENCY - Westminster,2019-03-28,EXP - PURCHASE OF GOODS/SERVICES - RAIL TRAVEL,Risk Assessment - operations,CORPORATE TRAVEL MANAGEMENT NORTH LTD,1011709059,124.8,BUSINESS TRAVEL WEEK 11,BD1 1PL,ADMIN
FOOD STANDARDS AGENCY - Westminster,FOOD STANDARDS AGENCY - Westminster,2019-03-28,EXP - PURCHASE OF GOODS/SERVICES - AIR TRAVEL,IT Information & Knowledge Management,CORPORATE TRAVEL MANAGEMENT NORTH LTD,1011709059,124.26,BUSINESS TRAVEL WEEK 11,BD1 1PL,ADMIN
FOOD STANDARDS AGENCY - Westminster,FOOD STANDARDS AGENCY - Westminster,2019-03-28,EXP - PURCHASE OF GOODS/SERVICES - RAIL TRAVEL,Resilience - Admin,CORPORATE TRAVEL MANAGEMENT NORTH LTD,1011709059,124,BUSINESS TRAVEL WEEK 11,BD1 1PL,ADMIN
FOOD STANDARDS AGENCY - Westminster,FOOD STANDARDS AGENCY - Westminster,2019-03-12,EXP - PURCHASE OF GOODS/SERVICES - OTHER TRAVEL,Food Incidents & Resilience - Prog,CORPORATE TRAVEL MANAGEMENT NORTH LTD,1011709442,122.19,TRAVEL EXPENSES WEEK 9,BD1 5HQ,PROGRAMME
FOOD STANDARDS AGENCY - Westminster,FOOD STANDARDS AGENCY - Westminster,2019-03-15,EXP - PURCHASE OF GOODS/SERVICES - AIR TRAVEL,Comms Directors Office,CORPORATE TRAVEL MANAGEMENT NORTH LTD,1011708911,122.19,TRAVEL EXPENSES  - WEEK 10 ,BD1 5HQ,ADMIN
FOOD STANDARDS AGENCY - Westminster,FOOD STANDARDS AGENCY - Westminster,2019-03-12,EXP - PURCHASE OF GOODS/SERVICES - OTHER TRAVEL,North 4,CORPORATE TRAVEL MANAGEMENT NORTH LTD,1011709442,121.65,TRAVEL EXPENSES WEEK 9,BD1 5HQ,PROGRAMME
FOOD STANDARDS AGENCY - Westminster,FOOD STANDARDS AGENCY - Westminster,2019-03-12,EXP - PURCHASE OF GOODS/SERVICES - OTHER TRAVEL,Legal Branch A & Investigations,CORPORATE TRAVEL MANAGEMENT NORTH LTD,1011709442,120.2,TRAVEL EXPENSES WEEK 9,BD1 5HQ,ADMIN
FOOD STANDARDS AGENCY - Westminster,FOOD STANDARDS AGENCY - Westminster,2019-03-04,EXP - PURCHASE OF GOODS/SERVICES - RAIL TRAVEL,Digital,CORPORATE TRAVEL MANAGEMENT NORTH LTD,1011708715,118.1,TRAVEL WEEK 8 UK,BD1 5HQ,ADMIN
FOOD STANDARDS AGENCY - Westminster,FOOD STANDARDS AGENCY - Westminster,2019-03-28,EXP - PURCHASE OF GOODS/SERVICES - RAIL TRAVEL,Chemical Contaminants and Residues,CORPORATE TRAVEL MANAGEMENT NORTH LTD,1011709059,117.1,BUSINESS TRAVEL WEEK 11,BD1 1PL,ADMIN
FOOD STANDARDS AGENCY - Westminster,FOOD STANDARDS AGENCY - Westminster,2019-03-04,EXP - PURCHASE OF GOODS/SERVICES - RAIL TRAVEL,Resilience - Admin,CORPORATE TRAVEL MANAGEMENT NORTH LTD,1011708715,115,TRAVEL WEEK 8 UK,BD1 5HQ,ADMIN
FOOD STANDARDS AGENCY - Westminster,FOOD STANDARDS AGENCY - Westminster,2019-03-28,EXP - PURCHASE OF GOODS/SERVICES - AIR TRAVEL,Organisational Development,CORPORATE TRAVEL MANAGEMENT NORTH LTD,1011709059,114.75,BUSINESS TRAVEL WEEK 11,BD1 1PL,ADMIN
FOOD STANDARDS AGENCY - Westminster,FOOD STANDARDS AGENCY - Westminster,2019-03-28,EXP - PURCHASE OF GOODS/SERVICES - SUBSISTENCE,North 1,CORPORATE TRAVEL MANAGEMENT NORTH LTD,1011709059,114.7,BUSINESS TRAVEL WEEK 11,BD1 1PL,PROGRAMME
FOOD STANDARDS AGENCY - Westminster,FOOD STANDARDS AGENCY - Westminster,2019-03-12,EXP - PURCHASE OF GOODS/SERVICES - OTHER TRAVEL,"Meat Hygiene, ABP, TSE",CORPORATE TRAVEL MANAGEMENT NORTH LTD,1011709442,114.49,TRAVEL EXPENSES WEEK 9,BD1 5HQ,ADMIN
FOOD STANDARDS AGENCY - Westminster,FOOD STANDARDS AGENCY - Westminster,2019-03-28,EXP - PURCHASE OF GOODS/SERVICES - RAIL TRAVEL,Internal Audit,CORPORATE TRAVEL MANAGEMENT NORTH LTD,1011709059,113,BUSINESS TRAVEL WEEK 11,BD1 1PL,ADMIN
FOOD STANDARDS AGENCY - Westminster,FOOD STANDARDS AGENCY - Westminster,2019-03-13,EXP - PURCHASE OF GOODS/SERVICES - OTHER PROFESSIONAL SERVICES,Operational Delivery,ARCO UK LTD,1011708870,112.72,UK VAT - UK VAT,HU1 2SJ,PROGRAMME
FOOD STANDARDS AGENCY - Westminster,FOOD STANDARDS AGENCY - Westminster,2019-03-12,EXP - PURCHASE OF GOODS/SERVICES - OTHER TRAVEL,Chief Executive & Private Office,CORPORATE TRAVEL MANAGEMENT NORTH LTD,1011709442,112.64,TRAVEL EXPENSES WEEK 9,BD1 5HQ,ADMIN
FOOD STANDARDS AGENCY - Westminster,FOOD STANDARDS AGENCY - Westminster,2019-03-12,EXP - PURCHASE OF GOODS/SERVICES - OTHER TRAVEL,Risk Assessment ? research and development,CORPORATE TRAVEL MANAGEMENT NORTH LTD,1011709442,112.05,TRAVEL EXPENSES WEEK 9,BD1 5HQ,ADMIN
FOOD STANDARDS AGENCY - Westminster,FOOD STANDARDS AGENCY - Westminster,2019-03-15,EXP - PURCHASE OF GOODS/SERVICES - RAIL TRAVEL,Comms Directors Office,CORPORATE TRAVEL MANAGEMENT NORTH LTD,1011708911,111.6,TRAVEL EXPENSES  - WEEK 10,BD1 5HQ,ADMIN
FOOD STANDARDS AGENCY - Westminster,FOOD STANDARDS AGENCY - Westminster,2019-03-28,EXP - PURCHASE OF GOODS/SERVICES - SUBSISTENCE,Planning and Performance,CORPORATE TRAVEL MANAGEMENT NORTH LTD,1011709059,110.6,BUSINESS TRAVEL WEEK 11,BD1 1PL,ADMIN
FOOD STANDARDS AGENCY - Westminster,FOOD STANDARDS AGENCY - Westminster,2019-03-28,EXP - PURCHASE OF GOODS/SERVICES - AIR TRAVEL,Regulatory & International,CORPORATE TRAVEL MANAGEMENT NORTH LTD,1011709059,108.98,BUSINESS TRAVEL WEEK 11,BD1 1PL,ADMIN
FOOD STANDARDS AGENCY - Westminster,FOOD STANDARDS AGENCY - Westminster,2019-03-04,EXP - PURCHASE OF GOODS/SERVICES - SUBSISTENCE,Food Incidents & Resilience - Prog,CORPORATE TRAVEL MANAGEMENT NORTH LTD,1011708715,108.6,TRAVEL WEEK 8 UK,BD1 5HQ,PROGRAMME
FOOD STANDARDS AGENCY - Westminster,FOOD STANDARDS AGENCY - Westminster,2019-03-15,EXP - PURCHASE OF GOODS/SERVICES - SUBSISTENCE,IT Service Delivery,CORPORATE TRAVEL MANAGEMENT NORTH LTD,1011708911,108.6,TRAVEL EXPENSES  - WEEK 10,BD1 5HQ,ADMIN
FOOD STANDARDS AGENCY - Westminster,FOOD STANDARDS AGENCY - Westminster,2019-03-15,EXP - PURCHASE OF GOODS/SERVICES - SUBSISTENCE,Planning and Performance,CORPORATE TRAVEL MANAGEMENT NORTH LTD,1011708911,108.2,TRAVEL EXPENSES  - WEEK 10,BD1 5HQ,ADMIN
FOOD STANDARDS AGENCY - Westminster,FOOD STANDARDS AGENCY - Westminster,2019-03-04,EXP - PURCHASE OF GOODS/SERVICES - SUBSISTENCE,North 1,CORPORATE TRAVEL MANAGEMENT NORTH LTD,1011708715,106.2,TRAVEL WEEK 8 UK,BD1 5HQ,PROGRAMME
FOOD STANDARDS AGENCY - Westminster,FOOD STANDARDS AGENCY - Westminster,2019-03-28,EXP - PURCHASE OF GOODS/SERVICES - SUBSISTENCE,General Food Hygiene,CORPORATE TRAVEL MANAGEMENT NORTH LTD,1011709059,105.43,BUSINESS TRAVEL WEEK 11,BD1 1PL,ADMIN
FOOD STANDARDS AGENCY - Westminster,FOOD STANDARDS AGENCY - Westminster,2019-03-15,EXP - PURCHASE OF GOODS/SERVICES - FOREIGN SUBSISTENCE,Allergens,CORPORATE TRAVEL MANAGEMENT NORTH LTD,1011708911,104.69,TRAVEL EXPENSES  - WEEK 10,BD1 5HQ,ADMIN
FOOD STANDARDS AGENCY - Westminster,FOOD STANDARDS AGENCY - Westminster,2019-03-15,EXP - PURCHASE OF GOODS/SERVICES - RAIL TRAVEL,Digital,CORPORATE TRAVEL MANAGEMENT NORTH LTD,1011708911,104.6,TRAVEL EXPENSES  - WEEK 10,BD1 5HQ,ADMIN
FOOD STANDARDS AGENCY - Westminster,FOOD STANDARDS AGENCY - Westminster,2019-03-15,EXP - PURCHASE OF GOODS/SERVICES - RAIL TRAVEL,Food Crime Unit - Prog,CORPORATE TRAVEL MANAGEMENT NORTH LTD,1011708911,103,TRAVEL EXPENSES  - WEEK 10,BD1 5HQ,PROGRAMME
FOOD STANDARDS AGENCY - Westminster,FOOD STANDARDS AGENCY - Westminster,2019-03-12,EXP - PURCHASE OF GOODS/SERVICES - OTHER TRAVEL,Programme and project delivery,CORPORATE TRAVEL MANAGEMENT NORTH LTD,1011709442,102.35,TRAVEL EXPENSES WEEK 9,BD1 5HQ,ADMIN
FOOD STANDARDS AGENCY - Westminster,FOOD STANDARDS AGENCY - Westminster,2019-03-15,EXP - PURCHASE OF GOODS/SERVICES - SUBSISTENCE,Procurement,CORPORATE TRAVEL MANAGEMENT NORTH LTD,1011708911,102.35,TRAVEL EXPENSES  - WEEK 10,BD1 5HQ,ADMIN
FOOD STANDARDS AGENCY - Westminster,FOOD STANDARDS AGENCY - Westminster,2019-03-12,EXP - PURCHASE OF GOODS/SERVICES - OTHER TRAVEL,Scientific Methods & Laboratory Policy,CORPORATE TRAVEL MANAGEMENT NORTH LTD,1011709442,101.34,TRAVEL EXPENSES WEEK 9,BD1 5HQ,ADMIN
FOOD STANDARDS AGENCY - Westminster,FOOD STANDARDS AGENCY - Westminster,2019-03-28,EXP - PURCHASE OF GOODS/SERVICES - AIR TRAVEL,Non Meat Field Ops,CORPORATE TRAVEL MANAGEMENT NORTH LTD,1011709059,100.15,BUSINESS TRAVEL WEEK 11,BD1 1PL,PROGRAMME
FOOD STANDARDS AGENCY - Westminster,FOOD STANDARDS AGENCY - Westminster,2019-03-15,EXP - PURCHASE OF GOODS/SERVICES - SUBSISTENCE,"Animal Feed, Foodborne Disease and Allergy (AFFDA)",CORPORATE TRAVEL MANAGEMENT NORTH LTD,1011708911,99.2,TRAVEL EXPENSES  - WEEK 10,BD1 5HQ,ADMIN
FOOD STANDARDS AGENCY - Westminster,FOOD STANDARDS AGENCY - Westminster,2019-03-15,EXP - PURCHASE OF GOODS/SERVICES - OTHER TRAVEL,NFCU Phase 2,CORPORATE TRAVEL MANAGEMENT NORTH LTD,1011708911,98,TRAVEL EXPENSES  - WEEK 10,BD1 5HQ,PROGRAMME
FOOD STANDARDS AGENCY - Westminster,FOOD STANDARDS AGENCY - Westminster,2019-03-15,EXP - PURCHASE OF GOODS/SERVICES - FOREIGN SUBSISTENCE,Corporate Support Unit,CORPORATE TRAVEL MANAGEMENT NORTH LTD,1011708911,97.05,TRAVEL EXPENSES  - WEEK 10,BD1 5HQ,ADMIN
FOOD STANDARDS AGENCY - Westminster,FOOD STANDARDS AGENCY - Westminster,2019-03-28,EXP - PURCHASE OF GOODS/SERVICES - FOREIGN SUBSISTENCE,"Novel Foods, GM, Radiological and Feed Additives",CORPORATE TRAVEL MANAGEMENT NORTH LTD,1011709059,95.57,BUSINESS TRAVEL WEEK 11,BD1 1PL,ADMIN
FOOD STANDARDS AGENCY - Westminster,FOOD STANDARDS AGENCY - Westminster,2019-03-04,EXP - PURCHASE OF GOODS/SERVICES - RAIL TRAVEL,North 1,CORPORATE TRAVEL MANAGEMENT NORTH LTD,1011708715,93.6,TRAVEL WEEK 8 UK,BD1 5HQ,PROGRAMME
FOOD STANDARDS AGENCY - Westminster,FOOD STANDARDS AGENCY - Westminster,2019-03-04,EXP - PURCHASE OF GOODS/SERVICES - OTHER TRAVEL,Operations Assurance ,CORPORATE TRAVEL MANAGEMENT NORTH LTD,1011708715,93.3,TRAVEL WEEK 8 UK,BD1 5HQ,PROGRAMME
FOOD STANDARDS AGENCY - Westminster,FOOD STANDARDS AGENCY - Westminster,2019-03-04,EXP - PURCHASE OF GOODS/SERVICES - RAIL TRAVEL,Analytics Unit,CORPORATE TRAVEL MANAGEMENT NORTH LTD,1011708715,90.9,TRAVEL WEEK 8 UK,BD1 5HQ,ADMIN
FOOD STANDARDS AGENCY - Westminster,FOOD STANDARDS AGENCY - Westminster,2019-03-12,EXP - PURCHASE OF GOODS/SERVICES - OTHER TRAVEL,"Meat Hygiene, ABP, TSE",CORPORATE TRAVEL MANAGEMENT NORTH LTD,1011709442,88.67,TRAVEL EXPENSES WEEK 9,BD1 5HQ,ADMIN
FOOD STANDARDS AGENCY - Westminster,FOOD STANDARDS AGENCY - Westminster,2019-03-12,EXP - PURCHASE OF GOODS/SERVICES - OTHER TRAVEL,Food Crime Unit - Prog,CORPORATE TRAVEL MANAGEMENT NORTH LTD,1011709442,87.1,TRAVEL EXPENSES WEEK 9,BD1 5HQ,PROGRAMME
FOOD STANDARDS AGENCY - Westminster,FOOD STANDARDS AGENCY - Westminster,2019-03-04,EXP - PURCHASE OF GOODS/SERVICES - OTHER TRAVEL,Organisational Development,CORPORATE TRAVEL MANAGEMENT NORTH LTD,1011708715,86.79,TRAVEL WEEK 8 UK,BD1 5HQ,ADMIN
FOOD STANDARDS AGENCY - Westminster,FOOD STANDARDS AGENCY - Westminster,2019-03-12,EXP - PURCHASE OF GOODS/SERVICES - OTHER TRAVEL,Planning and Performance,CORPORATE TRAVEL MANAGEMENT NORTH LTD,1011709442,86.7,TRAVEL EXPENSES WEEK 9,BD1 5HQ,ADMIN
FOOD STANDARDS AGENCY - Westminster,FOOD STANDARDS AGENCY - Westminster,2019-03-28,EXP - PURCHASE OF GOODS/SERVICES - SUBSISTENCE,Wales and West 3 ,CORPORATE TRAVEL MANAGEMENT NORTH LTD,1011709059,84.6,BUSINESS TRAVEL WEEK 11,BD1 1PL,PROGRAMME
FOOD STANDARDS AGENCY - Westminster,FOOD STANDARDS AGENCY - Westminster,2019-03-12,EXP - PURCHASE OF GOODS/SERVICES - OTHER TRAVEL,Legal Branch A & Investigations,CORPORATE TRAVEL MANAGEMENT NORTH LTD,1011709442,83.7,TRAVEL EXPENSES WEEK 9,BD1 5HQ,ADMIN
FOOD STANDARDS AGENCY - Westminster,FOOD STANDARDS AGENCY - Westminster,2019-03-12,EXP - PURCHASE OF GOODS/SERVICES - OTHER TRAVEL,Incident Handling and Engagement,CORPORATE TRAVEL MANAGEMENT NORTH LTD,1011709442,81.5,TRAVEL EXPENSES WEEK 9,BD1 5HQ,ADMIN
FOOD STANDARDS AGENCY - Westminster,FOOD STANDARDS AGENCY - Westminster,2019-03-12,EXP - PURCHASE OF GOODS/SERVICES - OTHER TRAVEL,"Food Additives, Flavourings, and Food Contact Materials",CORPORATE TRAVEL MANAGEMENT NORTH LTD,1011709442,80.2,TRAVEL EXPENSES WEEK 9,BD1 5HQ,ADMIN
FOOD STANDARDS AGENCY - Westminster,FOOD STANDARDS AGENCY - Westminster,2019-03-04,EXP - PURCHASE OF GOODS/SERVICES - SUBSISTENCE,Chief Scientific Advisors team,CORPORATE TRAVEL MANAGEMENT NORTH LTD,1011708715,79.6,TRAVEL WEEK 8 UK,BD1 5HQ,ADMIN
FOOD STANDARDS AGENCY - Westminster,FOOD STANDARDS AGENCY - Westminster,2019-03-28,EXP - PURCHASE OF GOODS/SERVICES - AIR TRAVEL,Food Crime Unit - Prog,CORPORATE TRAVEL MANAGEMENT NORTH LTD,1011709059,78.52,BUSINESS TRAVEL WEEK 11,BD1 1PL,PROGRAMME
FOOD STANDARDS AGENCY - Westminster,FOOD STANDARDS AGENCY - Westminster,2019-03-12,EXP - PURCHASE OF GOODS/SERVICES - OTHER TRAVEL,Wales and West 1 (England),CORPORATE TRAVEL MANAGEMENT NORTH LTD,1011709442,77.6,TRAVEL EXPENSES WEEK 9,BD1 5HQ,PROGRAMME
FOOD STANDARDS AGENCY - Westminster,FOOD STANDARDS AGENCY - Westminster,2019-03-04,EXP - PURCHASE OF GOODS/SERVICES - SUBSISTENCE,General Food Hygiene,CORPORATE TRAVEL MANAGEMENT NORTH LTD,1011708715,77.1,TRAVEL WEEK 8 UK,BD1 5HQ,ADMIN
FOOD STANDARDS AGENCY - Westminster,FOOD STANDARDS AGENCY - Westminster,2019-03-28,EXP - PURCHASE OF GOODS/SERVICES - AIR TRAVEL,Operations Assurance ,CORPORATE TRAVEL MANAGEMENT NORTH LTD,1011709059,71.33,BUSINESS TRAVEL WEEK 11,BD1 1PL,PROGRAMME
FOOD STANDARDS AGENCY - Westminster,FOOD STANDARDS AGENCY - Westminster,2019-03-12,EXP - PURCHASE OF GOODS/SERVICES - OTHER TRAVEL,East 2,CORPORATE TRAVEL MANAGEMENT NORTH LTD,1011709442,68.8,TRAVEL EXPENSES WEEK 9,BD1 5HQ,PROGRAMME
FOOD STANDARDS AGENCY - Westminster,FOOD STANDARDS AGENCY - Westminster,2019-03-15,EXP - PURCHASE OF GOODS/SERVICES - SUBSISTENCE,Wales and West 2 (Wales),CORPORATE TRAVEL MANAGEMENT NORTH LTD,1011708911,68.1,TRAVEL EXPENSES  - WEEK 10,BD1 5HQ,PROGRAMME
FOOD STANDARDS AGENCY - Westminster,FOOD STANDARDS AGENCY - Westminster,2019-03-04,EXP - PURCHASE OF GOODS/SERVICES - RAIL TRAVEL,Imports & Exports Team (Admin),CORPORATE TRAVEL MANAGEMENT NORTH LTD,1011708715,68,TRAVEL WEEK 8 UK,BD1 5HQ,ADMIN
FOOD STANDARDS AGENCY - Westminster,FOOD STANDARDS AGENCY - Westminster,2019-03-04,EXP - PURCHASE OF GOODS/SERVICES - RAIL TRAVEL,East 1,CORPORATE TRAVEL MANAGEMENT NORTH LTD,1011708715,67.6,TRAVEL WEEK 8 UK,BD1 5HQ,PROGRAMME
FOOD STANDARDS AGENCY - Westminster,FOOD STANDARDS AGENCY - Westminster,2019-03-15,EXP - PURCHASE OF GOODS/SERVICES - AIR TRAVEL,IT Information & Knowledge Management,CORPORATE TRAVEL MANAGEMENT NORTH LTD,1011708911,65.39,TRAVEL EXPENSES  - WEEK 10,BD1 5HQ,ADMIN
FOOD STANDARDS AGENCY - Westminster,FOOD STANDARDS AGENCY - Westminster,2019-03-12,EXP - PURCHASE OF GOODS/SERVICES - OTHER TRAVEL,Comms Directors Office,CORPORATE TRAVEL MANAGEMENT NORTH LTD,1011709442,64.5,TRAVEL EXPENSES WEEK 9,BD1 5HQ,ADMIN
FOOD STANDARDS AGENCY - Westminster,FOOD STANDARDS AGENCY - Westminster,2019-03-28,EXP - PURCHASE OF GOODS/SERVICES - RAIL TRAVEL,"Meat Hygiene, ABP, TSE",CORPORATE TRAVEL MANAGEMENT NORTH LTD,1011709059,63.4,BUSINESS TRAVEL WEEK 11,BD1 1PL,ADMIN
FOOD STANDARDS AGENCY - Westminster,FOOD STANDARDS AGENCY - Westminster,2019-03-12,EXP - PURCHASE OF GOODS/SERVICES - OTHER TRAVEL,North 2,CORPORATE TRAVEL MANAGEMENT NORTH LTD,1011709442,62.5,TRAVEL EXPENSES WEEK 9,BD1 5HQ,PROGRAMME
FOOD STANDARDS AGENCY - Westminster,FOOD STANDARDS AGENCY - Westminster,2019-03-04,EXP - PURCHASE OF GOODS/SERVICES - OTHER FOREIGN TRAVEL,Food Crime Unit - Prog,CORPORATE TRAVEL MANAGEMENT NORTH LTD,1011708715,62.1,TRAVEL WEEK 8 UK,BD1 5HQ,PROGRAMME
FOOD STANDARDS AGENCY - Westminster,FOOD STANDARDS AGENCY - Westminster,2019-03-04,EXP - PURCHASE OF GOODS/SERVICES - AIR TRAVEL,Regulating our Future,CORPORATE TRAVEL MANAGEMENT NORTH LTD,1011708715,60,TRAVEL WEEK 8 UK,BD1 5HQ,ADMIN
FOOD STANDARDS AGENCY - Westminster,FOOD STANDARDS AGENCY - Westminster,2019-03-15,EXP - PURCHASE OF GOODS/SERVICES - RAIL TRAVEL,East 4,CORPORATE TRAVEL MANAGEMENT NORTH LTD,1011708911,58.3,TRAVEL EXPENSES  - WEEK 10,BD1 5HQ,PROGRAMME
FOOD STANDARDS AGENCY - Westminster,FOOD STANDARDS AGENCY - Westminster,2019-03-04,EXP - PURCHASE OF GOODS/SERVICES - SUBSISTENCE,North 4,CORPORATE TRAVEL MANAGEMENT NORTH LTD,1011708715,56.7,TRAVEL WEEK 8 UK,BD1 5HQ,PROGRAMME
FOOD STANDARDS AGENCY - Westminster,FOOD STANDARDS AGENCY - Westminster,2019-03-15,EXP - PURCHASE OF GOODS/SERVICES - SUBSISTENCE,East 2,CORPORATE TRAVEL MANAGEMENT NORTH LTD,1011708911,56.1,TRAVEL EXPENSES  - WEEK 10,BD1 5HQ,PROGRAMME
FOOD STANDARDS AGENCY - Westminster,FOOD STANDARDS AGENCY - Westminster,2019-03-15,EXP - PURCHASE OF GOODS/SERVICES - SUBSISTENCE,North 2,CORPORATE TRAVEL MANAGEMENT NORTH LTD,1011708911,56.1,TRAVEL EXPENSES  - WEEK 10,BD1 5HQ,PROGRAMME
FOOD STANDARDS AGENCY - Westminster,FOOD STANDARDS AGENCY - Westminster,2019-03-28,EXP - PURCHASE OF GOODS/SERVICES - RAIL TRAVEL,East 2,CORPORATE TRAVEL MANAGEMENT NORTH LTD,1011709059,55.9,BUSINESS TRAVEL WEEK 11,BD1 1PL,PROGRAMME
FOOD STANDARDS AGENCY - Westminster,FOOD STANDARDS AGENCY - Westminster,2019-03-28,EXP - PURCHASE OF GOODS/SERVICES - RAIL TRAVEL,Digital,CORPORATE TRAVEL MANAGEMENT NORTH LTD,1011709059,55.7,BUSINESS TRAVEL WEEK 11,BD1 1PL,ADMIN
FOOD STANDARDS AGENCY - Westminster,FOOD STANDARDS AGENCY - Westminster,2019-03-04,EXP - PURCHASE OF GOODS/SERVICES - SUBSISTENCE,Procurement,CORPORATE TRAVEL MANAGEMENT NORTH LTD,1011708715,55.3,TRAVEL WEEK 8 UK,BD1 5HQ,ADMIN
FOOD STANDARDS AGENCY - Westminster,FOOD STANDARDS AGENCY - Westminster,2019-03-28,EXP - PURCHASE OF GOODS/SERVICES - SUBSISTENCE,Procurement,CORPORATE TRAVEL MANAGEMENT NORTH LTD,1011709059,55.3,BUSINESS TRAVEL WEEK 11,BD1 1PL,ADMIN
FOOD STANDARDS AGENCY - Westminster,FOOD STANDARDS AGENCY - Westminster,2019-03-15,EXP - PURCHASE OF GOODS/SERVICES - AIR TRAVEL,Chief Executive & Private Office,CORPORATE TRAVEL MANAGEMENT NORTH LTD,1011708911,49.32,TRAVEL EXPENSES  - WEEK 10 ,BD1 5HQ,ADMIN
FOOD STANDARDS AGENCY - Westminster,FOOD STANDARDS AGENCY - Westminster,2019-03-04,EXP - PURCHASE OF GOODS/SERVICES - SUBSISTENCE,Legal Branch A & Investigations,CORPORATE TRAVEL MANAGEMENT NORTH LTD,1011708715,48.6,TRAVEL WEEK 8 UK,BD1 5HQ,ADMIN
FOOD STANDARDS AGENCY - Westminster,FOOD STANDARDS AGENCY - Westminster,2019-03-12,EXP - PURCHASE OF GOODS/SERVICES - OTHER TRAVEL,North 1,CORPORATE TRAVEL MANAGEMENT NORTH LTD,1011709442,48.1,TRAVEL EXPENSES WEEK 9,BD1 5HQ,PROGRAMME
FOOD STANDARDS AGENCY - Westminster,FOOD STANDARDS AGENCY - Westminster,2019-03-15,EXP - PURCHASE OF GOODS/SERVICES - RAIL TRAVEL,Chemical Contaminants and Residues,CORPORATE TRAVEL MANAGEMENT NORTH LTD,1011708911,46.7,TRAVEL EXPENSES  - WEEK 10,BD1 5HQ,ADMIN
FOOD STANDARDS AGENCY - Westminster,FOOD STANDARDS AGENCY - Westminster,2019-03-04,EXP - PURCHASE OF GOODS/SERVICES - SUBSISTENCE,Wales and West 4 ,CORPORATE TRAVEL MANAGEMENT NORTH LTD,1011708715,43.15,TRAVEL WEEK 8 UK,BD1 5HQ,PROGRAMME
FOOD STANDARDS AGENCY - Westminster,FOOD STANDARDS AGENCY - Westminster,2019-03-28,EXP - PURCHASE OF GOODS/SERVICES - SUBSISTENCE,North 2,CORPORATE TRAVEL MANAGEMENT NORTH LTD,1011709059,43.1,BUSINESS TRAVEL WEEK 11,BD1 1PL,PROGRAMME
FOOD STANDARDS AGENCY - Westminster,FOOD STANDARDS AGENCY - Westminster,2019-03-12,EXP - PURCHASE OF GOODS/SERVICES - OTHER TRAVEL,Regulating our Future,CORPORATE TRAVEL MANAGEMENT NORTH LTD,1011709442,42.99,TRAVEL EXPENSES WEEK 9,BD1 5HQ,ADMIN
FOOD STANDARDS AGENCY - Westminster,FOOD STANDARDS AGENCY - Westminster,2019-03-15,EXP - PURCHASE OF GOODS/SERVICES - RAIL TRAVEL,Wales and West 2 (England),CORPORATE TRAVEL MANAGEMENT NORTH LTD,1011708911,40.1,TRAVEL EXPENSES  - WEEK 10,BD1 5HQ,PROGRAMME
FOOD STANDARDS AGENCY - Westminster,FOOD STANDARDS AGENCY - Westminster,2019-03-04,EXP - PURCHASE OF GOODS/SERVICES - RAIL TRAVEL,Risk Assessment - operations,CORPORATE TRAVEL MANAGEMENT NORTH LTD,1011708715,38.7,TRAVEL WEEK 8 UK,BD1 5HQ,ADMIN
FOOD STANDARDS AGENCY - Westminster,FOOD STANDARDS AGENCY - Westminster,2019-03-12,EXP - PURCHASE OF GOODS/SERVICES - OTHER TRAVEL,Organisational Development,CORPORATE TRAVEL MANAGEMENT NORTH LTD,1011709442,37.99,TRAVEL EXPENSES WEEK 9,BD1 5HQ,ADMIN
FOOD STANDARDS AGENCY - Westminster,FOOD STANDARDS AGENCY - Westminster,2019-03-28,EXP - PURCHASE OF GOODS/SERVICES - OTHER TRAVEL,Organisational Development,CORPORATE TRAVEL MANAGEMENT NORTH LTD,1011709059,37.99,BUSINESS TRAVEL WEEK 11,BD1 1PL,ADMIN
FOOD STANDARDS AGENCY - Westminster,FOOD STANDARDS AGENCY - Westminster,2019-03-15,EXP - PURCHASE OF GOODS/SERVICES -  FOREIGN AIR TRAVEL,Allergens,CORPORATE TRAVEL MANAGEMENT NORTH LTD,1011708911,37.98,TRAVEL EXPENSES  - WEEK 10,BD1 5HQ,ADMIN
FOOD STANDARDS AGENCY - Westminster,FOOD STANDARDS AGENCY - Westminster,2019-03-12,EXP - PURCHASE OF GOODS/SERVICES - OTHER TRAVEL,Analytics Unit,CORPORATE TRAVEL MANAGEMENT NORTH LTD,1011709442,37.2,TRAVEL EXPENSES WEEK 9,BD1 5HQ,ADMIN
FOOD STANDARDS AGENCY - Westminster,FOOD STANDARDS AGENCY - Westminster,2019-03-12,EXP - PURCHASE OF GOODS/SERVICES - OTHER TRAVEL,Planning and Performance,CORPORATE TRAVEL MANAGEMENT NORTH LTD,1011709442,35.8,TRAVEL EXPENSES WEEK 9,BD1 5HQ,ADMIN
FOOD STANDARDS AGENCY - Westminster,FOOD STANDARDS AGENCY - Westminster,2019-03-15,EXP - PURCHASE OF GOODS/SERVICES - SUBSISTENCE,"Meat Hygiene, ABP, TSE",CORPORATE TRAVEL MANAGEMENT NORTH LTD,1011708911,34.6,TRAVEL EXPENSES  - WEEK 10,BD1 5HQ,ADMIN
FOOD STANDARDS AGENCY - Westminster,FOOD STANDARDS AGENCY - Westminster,2019-03-28,EXP - PURCHASE OF GOODS/SERVICES - SUBSISTENCE,"Meat Hygiene, ABP, TSE",CORPORATE TRAVEL MANAGEMENT NORTH LTD,1011709059,34.6,BUSINESS TRAVEL WEEK 11,BD1 1PL,ADMIN
FOOD STANDARDS AGENCY - Westminster,FOOD STANDARDS AGENCY - Westminster,2019-03-04,EXP - PURCHASE OF GOODS/SERVICES - SUBSISTENCE,Wales and West 1 (England),CORPORATE TRAVEL MANAGEMENT NORTH LTD,1011708715,33.85,TRAVEL WEEK 8 UK,BD1 5HQ,PROGRAMME
FOOD STANDARDS AGENCY - Westminster,FOOD STANDARDS AGENCY - Westminster,2019-03-12,EXP - PURCHASE OF GOODS/SERVICES - OTHER TRAVEL,Operations Assurance ,CORPORATE TRAVEL MANAGEMENT NORTH LTD,1011709442,33.15,TRAVEL EXPENSES WEEK 9,BD1 5HQ,PROGRAMME
FOOD STANDARDS AGENCY - Westminster,FOOD STANDARDS AGENCY - Westminster,2019-03-28,EXP - PURCHASE OF GOODS/SERVICES - SUBSISTENCE,Wales and West 2 (Wales),CORPORATE TRAVEL MANAGEMENT NORTH LTD,1011709059,32.6,BUSINESS TRAVEL WEEK 11,BD1 1PL,PROGRAMME
FOOD STANDARDS AGENCY - Westminster,FOOD STANDARDS AGENCY - Westminster,2019-03-04,EXP - PURCHASE OF GOODS/SERVICES - RAIL TRAVEL,Allergens,CORPORATE TRAVEL MANAGEMENT NORTH LTD,1011708715,32,TRAVEL WEEK 8 UK,BD1 5HQ,ADMIN
FOOD STANDARDS AGENCY - Westminster,FOOD STANDARDS AGENCY - Westminster,2019-03-12,EXP - PURCHASE OF GOODS/SERVICES - OTHER TRAVEL,Internal Audit,CORPORATE TRAVEL MANAGEMENT NORTH LTD,1011709442,31,TRAVEL EXPENSES WEEK 9,BD1 5HQ,ADMIN
FOOD STANDARDS AGENCY - Westminster,FOOD STANDARDS AGENCY - Westminster,2019-03-12,EXP - PURCHASE OF GOODS/SERVICES - OTHER TRAVEL,"Food Additives, Flavourings, and Food Contact Materials",CORPORATE TRAVEL MANAGEMENT NORTH LTD,1011709442,30.15,TRAVEL EXPENSES WEEK 9,BD1 5HQ,ADMIN
FOOD STANDARDS AGENCY - Westminster,FOOD STANDARDS AGENCY - Westminster,2019-03-04,EXP - PURCHASE OF GOODS/SERVICES - RAIL TRAVEL,Wales and West 2 (England),CORPORATE TRAVEL MANAGEMENT NORTH LTD,1011708715,29.4,TRAVEL WEEK 8 UK,BD1 5HQ,PROGRAMME
FOOD STANDARDS AGENCY - Westminster,FOOD STANDARDS AGENCY - Westminster,2019-03-04,EXP - PURCHASE OF GOODS/SERVICES - RAIL TRAVEL,"Meat Hygiene, ABP, TSE",CORPORATE TRAVEL MANAGEMENT NORTH LTD,1011708715,28.2,TRAVEL WEEK 8 UK,BD1 5HQ,ADMIN
FOOD STANDARDS AGENCY - Westminster,FOOD STANDARDS AGENCY - Westminster,2019-03-15,EXP - PURCHASE OF GOODS/SERVICES - RAIL TRAVEL,Imports & Exports Team (Admin),CORPORATE TRAVEL MANAGEMENT NORTH LTD,1011708911,27.2,TRAVEL EXPENSES  - WEEK 10,BD1 5HQ,ADMIN
FOOD STANDARDS AGENCY - Westminster,FOOD STANDARDS AGENCY - Westminster,2019-03-15,EXP - PURCHASE OF GOODS/SERVICES - OTHER TRAVEL,Organisational Development,CORPORATE TRAVEL MANAGEMENT NORTH LTD,1011708911,26.15,TRAVEL EXPENSES  - WEEK 10,BD1 5HQ,ADMIN
FOOD STANDARDS AGENCY - Westminster,FOOD STANDARDS AGENCY - Westminster,2019-03-12,EXP - PURCHASE OF GOODS/SERVICES - OTHER TRAVEL,Wales and West 2 (England),CORPORATE TRAVEL MANAGEMENT NORTH LTD,1011709442,24.5,TRAVEL EXPENSES WEEK 9,BD1 5HQ,PROGRAMME
FOOD STANDARDS AGENCY - Westminster,FOOD STANDARDS AGENCY - Westminster,2019-03-28,EXP - PURCHASE OF GOODS/SERVICES - RAIL TRAVEL,North 1,CORPORATE TRAVEL MANAGEMENT NORTH LTD,1011709059,20.1,BUSINESS TRAVEL WEEK 11,BD1 1PL,PROGRAMME
FOOD STANDARDS AGENCY - Westminster,FOOD STANDARDS AGENCY - Westminster,2019-03-28,EXP - PURCHASE OF GOODS/SERVICES - RAIL TRAVEL,Wales and West 1 (Wales),CORPORATE TRAVEL MANAGEMENT NORTH LTD,1011709059,19.3,BUSINESS TRAVEL WEEK 11,BD1 1PL,PROGRAMME
FOOD STANDARDS AGENCY - Westminster,FOOD STANDARDS AGENCY - Westminster,2019-03-12,EXP - PURCHASE OF GOODS/SERVICES - OTHER TRAVEL,Wales and West 3 ,CORPORATE TRAVEL MANAGEMENT NORTH LTD,1011709442,14.8,TRAVEL EXPENSES WEEK 9,BD1 5HQ,PROGRAMME
FOOD STANDARDS AGENCY - Westminster,FOOD STANDARDS AGENCY - Westminster,2019-03-28,EXP - PURCHASE OF GOODS/SERVICES - RAIL TRAVEL,Wales and West 2 (England),CORPORATE TRAVEL MANAGEMENT NORTH LTD,1011709059,14.8,BUSINESS TRAVEL WEEK 11,BD1 1PL,PROGRAMME
FOOD STANDARDS AGENCY - Westminster,FOOD STANDARDS AGENCY - Westminster,2019-03-12,EXP - PURCHASE OF GOODS/SERVICES - OTHER TRAVEL,Food Crime Unit - Admin,CORPORATE TRAVEL MANAGEMENT NORTH LTD,1011709442,13.2,TRAVEL EXPENSES WEEK 9,BD1 5HQ,ADMIN
FOOD STANDARDS AGENCY - Westminster,FOOD STANDARDS AGENCY - Westminster,2019-03-12,EXP - PURCHASE OF GOODS/SERVICES - OTHER TRAVEL,Risk Assessment - operations,CORPORATE TRAVEL MANAGEMENT NORTH LTD,1011709442,13.1,TRAVEL EXPENSES WEEK 9,BD1 5HQ,ADMIN
FOOD STANDARDS AGENCY - Westminster,FOOD STANDARDS AGENCY - Westminster,2019-03-15,EXP - PURCHASE OF GOODS/SERVICES - RAIL TRAVEL,Wales and West 1 (England),CORPORATE TRAVEL MANAGEMENT NORTH LTD,1011708911,8.7,TRAVEL EXPENSES  - WEEK 10,BD1 5HQ,PROGRAMME
FOOD STANDARDS AGENCY - Westminster,FOOD STANDARDS AGENCY - Westminster,2019-03-04,EXP - PURCHASE OF GOODS/SERVICES - SUBSISTENCE,Resilience - Admin,CORPORATE TRAVEL MANAGEMENT NORTH LTD,1011708715,1.2,TRAVEL WEEK 8 UK,BD1 5HQ,ADMIN
FOOD STANDARDS AGENCY - Westminster,FOOD STANDARDS AGENCY - Westminster,2019-03-12,EXP - PURCHASE OF GOODS/SERVICES - OTHER TRAVEL,Chief Scientific Advisors team,CORPORATE TRAVEL MANAGEMENT NORTH LTD,1011709442,1.2,TRAVEL EXPENSES WEEK 9,BD1 5HQ,ADMIN
FOOD STANDARDS AGENCY - Westminster,FOOD STANDARDS AGENCY - Westminster,2019-03-12,EXP - PURCHASE OF GOODS/SERVICES - OTHER TRAVEL,"Food Additives, Flavourings, and Food Contact Materials",CORPORATE TRAVEL MANAGEMENT NORTH LTD,1011709442,1.2,TRAVEL EXPENSES WEEK 9,BD1 5HQ,ADMIN
FOOD STANDARDS AGENCY - Westminster,FOOD STANDARDS AGENCY - Westminster,2019-03-15,EXP - PURCHASE OF GOODS/SERVICES - FOREIGN SUBSISTENCE,Operations Assurance ,CORPORATE TRAVEL MANAGEMENT NORTH LTD,1011708911,1.2,TRAVEL EXPENSES  - WEEK 10,BD1 5HQ,PROGRAMME
FOOD STANDARDS AGENCY - Westminster,FOOD STANDARDS AGENCY - Westminster,2019-03-04,EXP - PURCHASE OF GOODS/SERVICES - SUBSISTENCE,Corporate Support Unit,CORPORATE TRAVEL MANAGEMENT NORTH LTD,1011708715,0.6,TRAVEL WEEK 8 UK,BD1 5HQ,ADMIN
FOOD STANDARDS AGENCY - Westminster,FOOD STANDARDS AGENCY - Westminster,2019-03-04,EXP - PURCHASE OF GOODS/SERVICES - SUBSISTENCE,Finance Director & Branch,CORPORATE TRAVEL MANAGEMENT NORTH LTD,1011708715,0.6,TRAVEL WEEK 8 UK,BD1 5HQ,ADMIN
FOOD STANDARDS AGENCY - Westminster,FOOD STANDARDS AGENCY - Westminster,2019-03-12,EXP - PURCHASE OF GOODS/SERVICES - OTHER TRAVEL,Food Crime Unit - Admin,CORPORATE TRAVEL MANAGEMENT NORTH LTD,1011709442,0.6,TRAVEL EXPENSES WEEK 9,BD1 5HQ,ADMIN
FOOD STANDARDS AGENCY - Westminster,FOOD STANDARDS AGENCY - Westminster,2019-03-12,EXP - PURCHASE OF GOODS/SERVICES - OTHER TRAVEL,Food Incidents & Resilience - Prog,CORPORATE TRAVEL MANAGEMENT NORTH LTD,1011709442,0.6,TRAVEL EXPENSES WEEK 9,BD1 5HQ,PROGRAMME
FOOD STANDARDS AGENCY - Westminster,FOOD STANDARDS AGENCY - Westminster,2019-03-12,EXP - PURCHASE OF GOODS/SERVICES - OTHER TRAVEL,"Meat Hygiene, ABP, TSE",CORPORATE TRAVEL MANAGEMENT NORTH LTD,1011709442,0.6,TRAVEL EXPENSES WEEK 9,BD1 5HQ,ADMIN
FOOD STANDARDS AGENCY - Westminster,FOOD STANDARDS AGENCY - Westminster,2019-03-12,EXP - PURCHASE OF GOODS/SERVICES - OTHER TRAVEL,"Novel Foods, GM, Radiological and Feed Additives",CORPORATE TRAVEL MANAGEMENT NORTH LTD,1011709442,0.6,TRAVEL EXPENSES WEEK 9,BD1 5HQ,ADMIN
FOOD STANDARDS AGENCY - Westminster,FOOD STANDARDS AGENCY - Westminster,2019-03-12,EXP - PURCHASE OF GOODS/SERVICES - OTHER TRAVEL,Regulating our Future,CORPORATE TRAVEL MANAGEMENT NORTH LTD,1011709442,0.6,TRAVEL EXPENSES WEEK 9,BD1 5HQ,ADMIN
FOOD STANDARDS AGENCY - Westminster,FOOD STANDARDS AGENCY - Westminster,2019-03-12,EXP - PURCHASE OF GOODS/SERVICES - OTHER TRAVEL,Regulatory & International,CORPORATE TRAVEL MANAGEMENT NORTH LTD,1011709442,0.6,TRAVEL EXPENSES WEEK 9,BD1 5HQ,ADMIN
FOOD STANDARDS AGENCY - Westminster,FOOD STANDARDS AGENCY - Westminster,2019-03-28,EXP - PURCHASE OF GOODS/SERVICES - SUBSISTENCE,Internal Audit,CORPORATE TRAVEL MANAGEMENT NORTH LTD,1011709059,0.6,BUSINESS TRAVEL WEEK 11,BD1 1PL,ADMIN
FOOD STANDARDS AGENCY - Westminster,FOOD STANDARDS AGENCY - Westminster,2019-03-04,EXP - PURCHASE OF GOODS/SERVICES - SUBSISTENCE,Comms Directors Office,CORPORATE TRAVEL MANAGEMENT NORTH LTD,1011708715,-26.4,TRAVEL WEEK 8 UK,BD1 5HQ,ADMIN
FOOD STANDARDS AGENCY - Westminster,FOOD STANDARDS AGENCY - Westminster,2019-03-12,EXP - PURCHASE OF GOODS/SERVICES - OTHER TRAVEL,Wales and West 2 (Wales),CORPORATE TRAVEL MANAGEMENT NORTH LTD,1011709442,-41.2,TRAVEL EXPENSES WEEK 9,BD1 5HQ,PROGRAMME
FOOD STANDARDS AGENCY - Westminster,FOOD STANDARDS AGENCY - Westminster,2019-03-04,EXP - PURCHASE OF GOODS/SERVICES - SUBSISTENCE,IT Information & Knowledge Management,CORPORATE TRAVEL MANAGEMENT NORTH LTD,1011708715,-110.7,TRAVEL WEEK 8 UK,BD1 5HQ,ADMIN
FOOD STANDARDS AGENCY - Westminster,FOOD STANDARDS AGENCY - Westminster,2019-03-04,EXP - PURCHASE OF GOODS/SERVICES - SUBSISTENCE,Wales and West 3 ,CORPORATE TRAVEL MANAGEMENT NORTH LTD,1011708715,-169.45,TRAVEL WEEK 8 UK,BD1 5HQ,PROGRAMME
FOOD STANDARDS AGENCY - Westminster,FOOD STANDARDS AGENCY - Westminster,2019-03-28,EXP - PURCHASE OF GOODS/SERVICES - RAIL TRAVEL,"Novel Foods, GM, Radiological and Feed Additives",CORPORATE TRAVEL MANAGEMENT NORTH LTD,1011709059,-186.7,BUSINESS TRAVEL WEEK 11,BD1 1PL,ADMIN
FOOD STANDARDS AGENCY - Westminster,FOOD STANDARDS AGENCY - Westminster,2019-03-28,EXP - PURCHASE OF GOODS/SERVICES - SUBSISTENCE,IT Information & Knowledge Management,CORPORATE TRAVEL MANAGEMENT NORTH LTD,1011709059,-197.9,BUSINESS TRAVEL WEEK 11,BD1 1PL,ADMIN
FOOD STANDARDS AGENCY - Westminster,FOOD STANDARDS AGENCY - Westminster,2019-03-28,EXP - PURCHASE OF GOODS/SERVICES - RAIL TRAVEL,Chief Executive & Private Office,CORPORATE TRAVEL MANAGEMENT NORTH LTD,1011709059,-260,BUSINESS TRAVEL WEEK 11,BD1 1PL,ADMIN
FOOD STANDARDS AGENCY - Westminster,FOOD STANDARDS AGENCY - Westminster,2019-03-28,EXP - PURCHASE OF GOODS/SERVICES - RAIL TRAVEL,Corporate Support Unit,CORPORATE TRAVEL MANAGEMENT NORTH LTD,1011709059,-528.45,BUSINESS TRAVEL WEEK 11,BD1 1PL,ADMIN
FOOD STANDARDS AGENCY - Westminster,FOOD STANDARDS AGENCY - Westminster,2019-03-15,EXP - PURCHASE OF GOODS/SERVICES - AIR TRAVEL,"Food Additives, Flavourings, and Food Contact Materials",CORPORATE TRAVEL MANAGEMENT NORTH LTD,1011708911,-558,TRAVEL EXPENSES  - WEEK 10,BD1 5HQ,ADMIN
FOOD STANDARDS AGENCY - Westminster,FOOD STANDARDS AGENCY - Westminster,2019-03-08,EXP - PURCHASE OF GOODS/SERVICES - TRAINING & DEVELOPMENT,Organisational Development,CSL - K P M G LLP,1011708793,-28202,"Future, Engage, Deliver 1 day course",WD17 1DE,ADMIN
FOOD STANDARDS AGENCY - Westminster,FOOD STANDARDS AGENCY - Westminster,2019-03-22,EXP - PURCHASE OF GOODS/SERVICES - OTHER,Analytics Unit,UNIVERSITY OF KENT,1011708967,-41575,Nationally representative discrete choice survey on food preferences,CT2 7NZ,ADMIN
